Workbook

Sheet تولید
A1: ردیف | B1: تاریخ | C1: شماره دستور ساخت | D1: نام محصول | E1: مقدار تولید
A2: 1 | B2: 1393/01/05 | C2: 15-001 | D2: A | E2: 100
A3: 2 | B3: 1393/01/06 | C3: 15-002 | D3: B | E3: 200
A4: 3 | B4: 1393/01/07 | C4: 15-003 | D4: C | E4: 50
A5: 4 | B5: 1393/01/08 | C5: 15-004 | D5: D | E5: 185
A6: 5 | B6: 1393/01/09 | C6: 15-005 | D6: E | E6: 652

Sheet سفارشات
A1: ردیف | B1: تاریخ | C1: شماره دستور ساخت | D1: نام محصول | E1: مقدار سفارش | F1: تولید | G1: اختلاف | H1: مانده
A2: 1 | B2: 1393/01/02 | C2: 15-001 | D2: A | E2: 100 | F2: =SUMIFS(تولید!E:E,تولید!C:C,C2,تولید!D:D,D2) -> 100 | H2: =IF(E2-F2-G2>=0,E2-F2-G2,E2-F2-(-G2)) -> 0
A3: 2 | B3: 1393/01/03 | C3: 15-002 | D3: B | E3: 542 | F3: =SUMIFS(تولید!E:E,تولید!C:C,C3,تولید!D:D,D3) -> 200 | H3: 342
A4: 3 | B4: 1393/01/04 | C4: 15-003 | D4: C | E4: 50 | F4: =SUMIFS(تولید!E:E,تولید!C:C,C4,تولید!D:D,D4) -> 50 | H4: 0
A5: 4 | B5: 1393/01/05 | C5: 15-004 | D5: D | E5: 200 | F5: =SUMIFS(تولید!E:E,تولید!C:C,C5,تولید!D:D,D5) -> 185 | H5: 15
A6: 5 | B6: 1393/01/06 | C6: 15-005 | D6: E | E6: 650 | F6: =SUMIFS(تولید!E:E,تولید!C:C,C6,تولید!D:D,D6) -> 652 | G6: 2 | H6: =IF(E6-F6-G6>=0,E6-F6-G6,E6-F6-(-G6)) -> 0
A7: 6 | B7: 1393/01/07 | C7: 15-006 | D7: F | E7: 700 | F7: =SUMIFS(تولید!E:E,تولید!C:C,C7,تولید!D:D,D7) -> 0 | H7: =IF(E7-F7-G7>=0,E7-F7-G7,E7-F7-(-G7)) -> 700
A8: 7 | B8: 1393/01/08 | C8: 15-007 | D8: G | E8: 570 | F8: =SUMIFS(تولید!E:E,تولید!C:C,C8,تولید!D:D,D8) -> 0 | H8: 570
A9: 8 | B9: 1393/01/09 | C9: 15-008 | D9: H | E9: 420 | F9: =SUMIFS(تولید!E:E,تولید!C:C,C9,تولید!D:D,D9) -> 0 | H9: 420
A10: 9 | B10: 1393/01/10 | C10: 15-009 | D10: I | E10: 150 | F10: =SUMIFS(تولید!E:E,تولید!C:C,C10,تولید!D:D,D10) -> 0 | H10: 150
A11: 10 | B11: 1393/01/11 | C11: 15-010 | D11: J | E11: 320 | F11: =SUMIFS(تولید!E:E,تولید!C:C,C11,تولید!D:D,D11) -> 0 | H11: 320
F12: =SUMIFS(تولید!E:E,تولید!C:C,C12,تولید!D:D,D12) -> 0 | H12: 0
F13: =SUMIFS(تولید!E:E,تولید!C:C,C13,تولید!D:D,D13) -> 0 | H13: 0
F14: =SUMIFS(تولید!E:E,تولید!C:C,C14,تولید!D:D,D14) -> 0 | H14: 0
F15: =SUMIFS(تولید!E:E,تولید!C:C,C15,تولید!D:D,D15) -> 0 | H15: 0
F16: =SUMIFS(تولید!E:E,تولید!C:C,C16,تولید!D:D,D16) -> 0 | H16: 0
F17: =SUMIFS(تولید!E:E,تولید!C:C,C17,تولید!D:D,D17) -> 0 | H17: 0
F18: =SUMIFS(تولید!E:E,تولید!C:C,C18,تولید!D:D,D18) -> 0 | H18: 0
F19: =SUMIFS(تولید!E:E,تولید!C:C,C19,تولید!D:D,D19) -> 0 | H19: 0
F20: =SUMIFS(تولید!E:E,تولید!C:C,C20,تولید!D:D,D20) -> 0 | H20: 0
F21: =SUMIFS(تولید!E:E,تولید!C:C,C21,تولید!D:D,D21) -> 0 | H21: 0
F22: =SUMIFS(تولید!E:E,تولید!C:C,C22,تولید!D:D,D22) -> 0 | H22: 0
F23: =SUMIFS(تولید!E:E,تولید!C:C,C23,تولید!D:D,D23) -> 0 | H23: 0
F24: =SUMIFS(تولید!E:E,تولید!C:C,C24,تولید!D:D,D24) -> 0 | H24: 0
F25: =SUMIFS(تولید!E:E,تولید!C:C,C25,تولید!D:D,D25) -> 0 | H25: 0
F26: =SUMIFS(تولید!E:E,تولید!C:C,C26,تولید!D:D,D26) -> 0 | H26: 0
F27: =SUMIFS(تولید!E:E,تولید!C:C,C27,تولید!D:D,D27) -> 0 | H27: 0
F28: =SUMIFS(تولید!E:E,تولید!C:C,C28,تولید!D:D,D28) -> 0 | H28: 0
F29: =SUMIFS(تولید!E:E,تولید!C:C,C29,تولید!D:D,D29) -> 0 | H29: 0
F30: =SUMIFS(تولید!E:E,تولید!C:C,C30,تولید!D:D,D30) -> 0 | H30: 0
F31: =SUMIFS(تولید!E:E,تولید!C:C,C31,تولید!D:D,D31) -> 0 | H31: 0
F32: =SUMIFS(تولید!E:E,تولید!C:C,C32,تولید!D:D,D32) -> 0 | H32: 0
F33: =SUMIFS(تولید!E:E,تولید!C:C,C33,تولید!D:D,D33) -> 0 | H33: 0
F34: =SUMIFS(تولید!E:E,تولید!C:C,C34,تولید!D:D,D34) -> 0 | H34: 0
F35: =SUMIFS(تولید!E:E,تولید!C:C,C35,تولید!D:D,D35) -> 0 | H35: 0
F36: =SUMIFS(تولید!E:E,تولید!C:C,C36,تولید!D:D,D36) -> 0 | H36: 0
F37: =SUMIFS(تولید!E:E,تولید!C:C,C37,تولید!D:D,D37) -> 0 | H37: 0
F38: =SUMIFS(تولید!E:E,تولید!C:C,C38,تولید!D:D,D38) -> 0 | H38: 0
F39: =SUMIFS(تولید!E:E,تولید!C:C,C39,تولید!D:D,D39) -> 0 | H39: 0
F40: =SUMIFS(تولید!E:E,تولید!C:C,C40,تولید!D:D,D40) -> 0 | H40: 0
F41: =SUMIFS(تولید!E:E,تولید!C:C,C41,تولید!D:D,D41) -> 0 | H41: 0
F42: =SUMIFS(تولید!E:E,تولید!C:C,C42,تولید!D:D,D42) -> 0 | H42: 0
F43: =SUMIFS(تولید!E:E,تولید!C:C,C43,تولید!D:D,D43) -> 0 | H43: 0
F44: =SUMIFS(تولید!E:E,تولید!C:C,C44,تولید!D:D,D44) -> 0 | H44: 0
F45: =SUMIFS(تولید!E:E,تولید!C:C,C45,تولید!D:D,D45) -> 0 | H45: 0
F46: =SUMIFS(تولید!E:E,تولید!C:C,C46,تولید!D:D,D46) -> 0 | H46: 0
F47: =SUMIFS(تولید!E:E,تولید!C:C,C47,تولید!D:D,D47) -> 0 | H47: 0
F48: =SUMIFS(تولید!E:E,تولید!C:C,C48,تولید!D:D,D48) -> 0 | H48: 0
F49: =SUMIFS(تولید!E:E,تولید!C:C,C49,تولید!D:D,D49) -> 0 | H49: 0
F50: =SUMIFS(تولید!E:E,تولید!C:C,C50,تولید!D:D,D50) -> 0 | H50: 0
F51: =SUMIFS(تولید!E:E,تولید!C:C,C51,تولید!D:D,D51) -> 0 | H51: 0
F52: =SUMIFS(تولید!E:E,تولید!C:C,C52,تولید!D:D,D52) -> 0 | H52: 0
F53: =SUMIFS(تولید!E:E,تولید!C:C,C53,تولید!D:D,D53) -> 0 | H53: 0
F54: =SUMIFS(تولید!E:E,تولید!C:C,C54,تولید!D:D,D54) -> 0 | H54: 0
F55: =SUMIFS(تولید!E:E,تولید!C:C,C55,تولید!D:D,D55) -> 0 | H55: 0
F56: =SUMIFS(تولید!E:E,تولید!C:C,C56,تولید!D:D,D56) -> 0 | H56: 0
F57: =SUMIFS(تولید!E:E,تولید!C:C,C57,تولید!D:D,D57) -> 0 | H57: 0
F58: =SUMIFS(تولید!E:E,تولید!C:C,C58,تولید!D:D,D58) -> 0 | H58: 0
F59: =SUMIFS(تولید!E:E,تولید!C:C,C59,تولید!D:D,D59) -> 0 | H59: 0
F60: =SUMIFS(تولید!E:E,تولید!C:C,C60,تولید!D:D,D60) -> 0 | H60: 0
F61: =SUMIFS(تولید!E:E,تولید!C:C,C61,تولید!D:D,D61) -> 0 | H61: 0
F62: =SUMIFS(تولید!E:E,تولید!C:C,C62,تولید!D:D,D62) -> 0 | H62: 0
F63: =SUMIFS(تولید!E:E,تولید!C:C,C63,تولید!D:D,D63) -> 0 | H63: 0
F64: =SUMIFS(تولید!E:E,تولید!C:C,C64,تولید!D:D,D64) -> 0 | H64: 0
F65: =SUMIFS(تولید!E:E,تولید!C:C,C65,تولید!D:D,D65) -> 0 | H65: 0
F66: =SUMIFS(تولید!E:E,تولید!C:C,C66,تولید!D:D,D66) -> 0 | H66: 0
F67: =SUMIFS(تولید!E:E,تولید!C:C,C67,تولید!D:D,D67) -> 0 | H67: 0
F68: =SUMIFS(تولید!E:E,تولید!C:C,C68,تولید!D:D,D68) -> 0 | H68: 0
F69: =SUMIFS(تولید!E:E,تولید!C:C,C69,تولید!D:D,D69) -> 0 | H69: 0
F70: =SUMIFS(تولید!E:E,تولید!C:C,C70,تولید!D:D,D70) -> 0 | H70: 0
F71: =SUMIFS(تولید!E:E,تولید!C:C,C71,تولید!D:D,D71) -> 0 | H71: =IF(E71-F71-G71>=0,E71-F71-G71,E71-F71-(-G71)) -> 0
F72: =SUMIFS(تولید!E:E,تولید!C:C,C72,تولید!D:D,D72) -> 0 | H72: 0
F73: =SUMIFS(تولید!E:E,تولید!C:C,C73,تولید!D:D,D73) -> 0 | H73: 0
F74: =SUMIFS(تولید!E:E,تولید!C:C,C74,تولید!D:D,D74) -> 0 | H74: 0
F75: =SUMIFS(تولید!E:E,تولید!C:C,C75,تولید!D:D,D75) -> 0 | H75: 0
F76: =SUMIFS(تولید!E:E,تولید!C:C,C76,تولید!D:D,D76) -> 0 | H76: 0
F77: =SUMIFS(تولید!E:E,تولید!C:C,C77,تولید!D:D,D77) -> 0 | H77: 0
F78: =SUMIFS(تولید!E:E,تولید!C:C,C78,تولید!D:D,D78) -> 0 | H78: 0
F79: =SUMIFS(تولید!E:E,تولید!C:C,C79,تولید!D:D,D79) -> 0 | H79: 0
F80: =SUMIFS(تولید!E:E,تولید!C:C,C80,تولید!D:D,D80) -> 0 | H80: 0
F81: =SUMIFS(تولید!E:E,تولید!C:C,C81,تولید!D:D,D81) -> 0 | H81: 0
F82: =SUMIFS(تولید!E:E,تولید!C:C,C82,تولید!D:D,D82) -> 0 | H82: 0
F83: =SUMIFS(تولید!E:E,تولید!C:C,C83,تولید!D:D,D83) -> 0 | H83: 0
F84: =SUMIFS(تولید!E:E,تولید!C:C,C84,تولید!D:D,D84) -> 0 | H84: 0
F85: =SUMIFS(تولید!E:E,تولید!C:C,C85,تولید!D:D,D85) -> 0 | H85: 0
F86: =SUMIFS(تولید!E:E,تولید!C:C,C86,تولید!D:D,D86) -> 0 | H86: 0
F87: =SUMIFS(تولید!E:E,تولید!C:C,C87,تولید!D:D,D87) -> 0 | H87: 0
F88: =SUMIFS(تولید!E:E,تولید!C:C,C88,تولید!D:D,D88) -> 0 | H88: 0
F89: =SUMIFS(تولید!E:E,تولید!C:C,C89,تولید!D:D,D89) -> 0 | H89: 0
F90: =SUMIFS(تولید!E:E,تولید!C:C,C90,تولید!D:D,D90) -> 0 | H90: 0
F91: =SUMIFS(تولید!E:E,تولید!C:C,C91,تولید!D:D,D91) -> 0 | H91: 0
F92: =SUMIFS(تولید!E:E,تولید!C:C,C92,تولید!D:D,D92) -> 0 | H92: 0
F93: =SUMIFS(تولید!E:E,تولید!C:C,C93,تولید!D:D,D93) -> 0 | H93: 0
F94: =SUMIFS(تولید!E:E,تولید!C:C,C94,تولید!D:D,D94) -> 0 | H94: 0
F95: =SUMIFS(تولید!E:E,تولید!C:C,C95,تولید!D:D,D95) -> 0 | H95: 0
F96: =SUMIFS(تولید!E:E,تولید!C:C,C96,تولید!D:D,D96) -> 0 | H96: 0
F97: =SUMIFS(تولید!E:E,تولید!C:C,C97,تولید!D:D,D97) -> 0 | H97: 0
F98: =SUMIFS(تولید!E:E,تولید!C:C,C98,تولید!D:D,D98) -> 0 | H98: 0
F99: =SUMIFS(تولید!E:E,تولید!C:C,C99,تولید!D:D,D99) -> 0 | H99: 0
F100: =SUMIFS(تولید!E:E,تولید!C:C,C100,تولید!D:D,D100) -> 0 | H100: 0
F101: =SUMIFS(تولید!E:E,تولید!C:C,C101,تولید!D:D,D101) -> 0 | H101: 0
F102: =SUMIFS(تولید!E:E,تولید!C:C,C102,تولید!D:D,D102) -> 0 | H102: 0
F103: =SUMIFS(تولید!E:E,تولید!C:C,C103,تولید!D:D,D103) -> 0 | H103: 0
F104: =SUMIFS(تولید!E:E,تولید!C:C,C104,تولید!D:D,D104) -> 0 | H104: 0
F105: =SUMIFS(تولید!E:E,تولید!C:C,C105,تولید!D:D,D105) -> 0 | H105: 0
F106: =SUMIFS(تولید!E:E,تولید!C:C,C106,تولید!D:D,D106) -> 0 | H106: 0
F107: =SUMIFS(تولید!E:E,تولید!C:C,C107,تولید!D:D,D107) -> 0 | H107: 0
F108: =SUMIFS(تولید!E:E,تولید!C:C,C108,تولید!D:D,D108) -> 0 | H108: 0
F109: =SUMIFS(تولید!E:E,تولید!C:C,C109,تولید!D:D,D109) -> 0 | H109: 0
F110: =SUMIFS(تولید!E:E,تولید!C:C,C110,تولید!D:D,D110) -> 0 | H110: 0
F111: =SUMIFS(تولید!E:E,تولید!C:C,C111,تولید!D:D,D111) -> 0 | H111: 0
F112: =SUMIFS(تولید!E:E,تولید!C:C,C112,تولید!D:D,D112) -> 0 | H112: 0
F113: =SUMIFS(تولید!E:E,تولید!C:C,C113,تولید!D:D,D113) -> 0 | H113: 0
F114: =SUMIFS(تولید!E:E,تولید!C:C,C114,تولید!D:D,D114) -> 0 | H114: 0
F115: =SUMIFS(تولید!E:E,تولید!C:C,C115,تولید!D:D,D115) -> 0 | H115: 0
F116: =SUMIFS(تولید!E:E,تولید!C:C,C116,تولید!D:D,D116) -> 0 | H116: 0
F117: =SUMIFS(تولید!E:E,تولید!C:C,C117,تولید!D:D,D117) -> 0 | H117: 0
F118: =SUMIFS(تولید!E:E,تولید!C:C,C118,تولید!D:D,D118) -> 0 | H118: 0
F119: =SUMIFS(تولید!E:E,تولید!C:C,C119,تولید!D:D,D119) -> 0 | H119: 0
F120: =SUMIFS(تولید!E:E,تولید!C:C,C120,تولید!D:D,D120) -> 0 | H120: 0
F121: =SUMIFS(تولید!E:E,تولید!C:C,C121,تولید!D:D,D121) -> 0 | H121: 0
F122: =SUMIFS(تولید!E:E,تولید!C:C,C122,تولید!D:D,D122) -> 0 | H122: 0
F123: =SUMIFS(تولید!E:E,تولید!C:C,C123,تولید!D:D,D123) -> 0 | H123: 0
F124: =SUMIFS(تولید!E:E,تولید!C:C,C124,تولید!D:D,D124) -> 0 | H124: 0
F125: =SUMIFS(تولید!E:E,تولید!C:C,C125,تولید!D:D,D125) -> 0 | H125: 0
F126: =SUMIFS(تولید!E:E,تولید!C:C,C126,تولید!D:D,D126) -> 0 | H126: 0
F127: =SUMIFS(تولید!E:E,تولید!C:C,C127,تولید!D:D,D127) -> 0 | H127: 0
F128: =SUMIFS(تولید!E:E,تولید!C:C,C128,تولید!D:D,D128) -> 0 | H128: 0
F129: =SUMIFS(تولید!E:E,تولید!C:C,C129,تولید!D:D,D129) -> 0 | H129: 0
F130: =SUMIFS(تولید!E:E,تولید!C:C,C130,تولید!D:D,D130) -> 0 | H130: 0
F131: =SUMIFS(تولید!E:E,تولید!C:C,C131,تولید!D:D,D131) -> 0 | H131: 0
F132: =SUMIFS(تولید!E:E,تولید!C:C,C132,تولید!D:D,D132) -> 0 | H132: 0
F133: =SUMIFS(تولید!E:E,تولید!C:C,C133,تولید!D:D,D133) -> 0 | H133: 0
F134: =SUMIFS(تولید!E:E,تولید!C:C,C134,تولید!D:D,D134) -> 0 | H134: 0
F135: =SUMIFS(تولید!E:E,تولید!C:C,C135,تولید!D:D,D135) -> 0 | H135: =IF(E135-F135-G135>=0,E135-F135-G135,E135-F135-(-G135)) -> 0
F136: =SUMIFS(تولید!E:E,تولید!C:C,C136,تولید!D:D,D136) -> 0 | H136: 0
F137: =SUMIFS(تولید!E:E,تولید!C:C,C137,تولید!D:D,D137) -> 0 | H137: 0
F138: =SUMIFS(تولید!E:E,تولید!C:C,C138,تولید!D:D,D138) -> 0 | H138: 0
F139: =SUMIFS(تولید!E:E,تولید!C:C,C139,تولید!D:D,D139) -> 0 | H139: 0
F140: =SUMIFS(تولید!E:E,تولید!C:C,C140,تولید!D:D,D140) -> 0 | H140: 0
F141: =SUMIFS(تولید!E:E,تولید!C:C,C141,تولید!D:D,D141) -> 0 | H141: 0
F142: =SUMIFS(تولید!E:E,تولید!C:C,C142,تولید!D:D,D142) -> 0 | H142: 0
F143: =SUMIFS(تولید!E:E,تولید!C:C,C143,تولید!D:D,D143) -> 0 | H143: 0
F144: =SUMIFS(تولید!E:E,تولید!C:C,C144,تولید!D:D,D144) -> 0 | H144: 0
F145: =SUMIFS(تولید!E:E,تولید!C:C,C145,تولید!D:D,D145) -> 0 | H145: 0
F146: =SUMIFS(تولید!E:E,تولید!C:C,C146,تولید!D:D,D146) -> 0 | H146: 0
F147: =SUMIFS(تولید!E:E,تولید!C:C,C147,تولید!D:D,D147) -> 0 | H147: 0
F148: =SUMIFS(تولید!E:E,تولید!C:C,C148,تولید!D:D,D148) -> 0 | H148: 0
F149: =SUMIFS(تولید!E:E,تولید!C:C,C149,تولید!D:D,D149) -> 0 | H149: 0
F150: =SUMIFS(تولید!E:E,تولید!C:C,C150,تولید!D:D,D150) -> 0 | H150: 0
F151: =SUMIFS(تولید!E:E,تولید!C:C,C151,تولید!D:D,D151) -> 0 | H151: 0
F152: =SUMIFS(تولید!E:E,تولید!C:C,C152,تولید!D:D,D152) -> 0 | H152: 0
F153: =SUMIFS(تولید!E:E,تولید!C:C,C153,تولید!D:D,D153) -> 0 | H153: 0
F154: =SUMIFS(تولید!E:E,تولید!C:C,C154,تولید!D:D,D154) -> 0 | H154: 0
F155: =SUMIFS(تولید!E:E,تولید!C:C,C155,تولید!D:D,D155) -> 0 | H155: 0
F156: =SUMIFS(تولید!E:E,تولید!C:C,C156,تولید!D:D,D156) -> 0 | H156: 0
F157: =SUMIFS(تولید!E:E,تولید!C:C,C157,تولید!D:D,D157) -> 0 | H157: 0
F158: =SUMIFS(تولید!E:E,تولید!C:C,C158,تولید!D:D,D158) -> 0 | H158: 0
F159: =SUMIFS(تولید!E:E,تولید!C:C,C159,تولید!D:D,D159) -> 0 | H159: 0
F160: =SUMIFS(تولید!E:E,تولید!C:C,C160,تولید!D:D,D160) -> 0 | H160: 0
F161: =SUMIFS(تولید!E:E,تولید!C:C,C161,تولید!D:D,D161) -> 0 | H161: 0
F162: =SUMIFS(تولید!E:E,تولید!C:C,C162,تولید!D:D,D162) -> 0 | H162: 0
F163: =SUMIFS(تولید!E:E,تولید!C:C,C163,تولید!D:D,D163) -> 0 | H163: 0
F164: =SUMIFS(تولید!E:E,تولید!C:C,C164,تولید!D:D,D164) -> 0 | H164: 0
F165: =SUMIFS(تولید!E:E,تولید!C:C,C165,تولید!D:D,D165) -> 0 | H165: 0
F166: =SUMIFS(تولید!E:E,تولید!C:C,C166,تولید!D:D,D166) -> 0 | H166: 0
F167: =SUMIFS(تولید!E:E,تولید!C:C,C167,تولید!D:D,D167) -> 0 | H167: 0
F168: =SUMIFS(تولید!E:E,تولید!C:C,C168,تولید!D:D,D168) -> 0 | H168: 0
F169: =SUMIFS(تولید!E:E,تولید!C:C,C169,تولید!D:D,D169) -> 0 | H169: 0
F170: =SUMIFS(تولید!E:E,تولید!C:C,C170,تولید!D:D,D170) -> 0 | H170: 0
F171: =SUMIFS(تولید!E:E,تولید!C:C,C171,تولید!D:D,D171) -> 0 | H171: 0
F172: =SUMIFS(تولید!E:E,تولید!C:C,C172,تولید!D:D,D172) -> 0 | H172: 0
F173: =SUMIFS(تولید!E:E,تولید!C:C,C173,تولید!D:D,D173) -> 0 | H173: 0
F174: =SUMIFS(تولید!E:E,تولید!C:C,C174,تولید!D:D,D174) -> 0 | H174: 0
F175: =SUMIFS(تولید!E:E,تولید!C:C,C175,تولید!D:D,D175) -> 0 | H175: 0
F176: =SUMIFS(تولید!E:E,تولید!C:C,C176,تولید!D:D,D176) -> 0 | H176: 0
F177: =SUMIFS(تولید!E:E,تولید!C:C,C177,تولید!D:D,D177) -> 0 | H177: 0
F178: =SUMIFS(تولید!E:E,تولید!C:C,C178,تولید!D:D,D178) -> 0 | H178: 0
F179: =SUMIFS(تولید!E:E,تولید!C:C,C179,تولید!D:D,D179) -> 0 | H179: 0
F180: =SUMIFS(تولید!E:E,تولید!C:C,C180,تولید!D:D,D180) -> 0 | H180: 0
F181: =SUMIFS(تولید!E:E,تولید!C:C,C181,تولید!D:D,D181) -> 0 | H181: 0
F182: =SUMIFS(تولید!E:E,تولید!C:C,C182,تولید!D:D,D182) -> 0 | H182: 0
F183: =SUMIFS(تولید!E:E,تولید!C:C,C183,تولید!D:D,D183) -> 0 | H183: 0
F184: =SUMIFS(تولید!E:E,تولید!C:C,C184,تولید!D:D,D184) -> 0 | H184: 0
F185: =SUMIFS(تولید!E:E,تولید!C:C,C185,تولید!D:D,D185) -> 0 | H185: 0
F186: =SUMIFS(تولید!E:E,تولید!C:C,C186,تولید!D:D,D186) -> 0 | H186: 0
F187: =SUMIFS(تولید!E:E,تولید!C:C,C187,تولید!D:D,D187) -> 0 | H187: 0
F188: =SUMIFS(تولید!E:E,تولید!C:C,C188,تولید!D:D,D188) -> 0 | H188: 0
F189: =SUMIFS(تولید!E:E,تولید!C:C,C189,تولید!D:D,D189) -> 0 | H189: 0
F190: =SUMIFS(تولید!E:E,تولید!C:C,C190,تولید!D:D,D190) -> 0 | H190: 0
F191: =SUMIFS(تولید!E:E,تولید!C:C,C191,تولید!D:D,D191) -> 0 | H191: 0
F192: =SUMIFS(تولید!E:E,تولید!C:C,C192,تولید!D:D,D192) -> 0 | H192: 0
F193: =SUMIFS(تولید!E:E,تولید!C:C,C193,تولید!D:D,D193) -> 0 | H193: 0
F194: =SUMIFS(تولید!E:E,تولید!C:C,C194,تولید!D:D,D194) -> 0 | H194: 0
F195: =SUMIFS(تولید!E:E,تولید!C:C,C195,تولید!D:D,D195) -> 0 | H195: 0
F196: =SUMIFS(تولید!E:E,تولید!C:C,C196,تولید!D:D,D196) -> 0 | H196: 0
F197: =SUMIFS(تولید!E:E,تولید!C:C,C197,تولید!D:D,D197) -> 0 | H197: 0
F198: =SUMIFS(تولید!E:E,تولید!C:C,C198,تولید!D:D,D198) -> 0 | H198: 0
F199: =SUMIFS(تولید!E:E,تولید!C:C,C199,تولید!D:D,D199) -> 0 | H199: =IF(E199-F199-G199>=0,E199-F199-G199,E199-F199-(-G199)) -> 0
F200: =SUMIFS(تولید!E:E,تولید!C:C,C200,تولید!D:D,D200) -> 0 | H200: 0
... 425 more rows

Sheet مانده سفارش
A1: مانده سفارشات تا آخرین تاریخ تولید : | E1: =INDIRECT("تولید!B"&COUNTA(تولید!B:B)) -> 1393/01/09
A3: ردیف | B3: شماره دستور ساخت | C3: تاریخ سفارش | D3: نام محصول | E3: مقدار سفارش | F3: تولید | G3: مانده
A4: =IF(C4="","",ROW()-ROW($A$3)) -> 1 | B4: =IF(سفارشات!H11<>0,سفارشات!C11,"") -> 15-010 | C4: =IF(سفارشات!H11<>0,سفارشات!B11,"") -> 1393/01/11 | D4: =IF(سفارشات!H11<>0,سفارشات!D11,"") -> J | E4: =IF(سفارشات!H11<>0,سفارشات!E11,"") -> 320 | F4: =IF(سفارشات!H11<>0,سفارشات!F11,"") -> 0 | G4: =IF(C4="","",E4-F4) -> 320
A5: =IF(C5="","",ROW()-ROW($A$3)) -> 2 | B5: =IF(سفارشات!H10<>0,سفارشات!C10,"") -> 15-009 | C5: =IF(سفارشات!H10<>0,سفارشات!B10,"") -> 1393/01/10 | D5: =IF(سفارشات!H10<>0,سفارشات!D10,"") -> I | E5: =IF(سفارشات!H10<>0,سفارشات!E10,"") -> 150 | F5: =IF(سفارشات!H10<>0,سفارشات!F10,"") -> 0 | G5: =IF(C5="","",E5-F5) -> 150
A6: =IF(C6="","",ROW()-ROW($A$3)) -> 3 | B6: =IF(سفارشات!H9<>0,سفارشات!C9,"") -> 15-008 | C6: =IF(سفارشات!H9<>0,سفارشات!B9,"") -> 1393/01/09 | D6: =IF(سفارشات!H9<>0,سفارشات!D9,"") -> H | E6: =IF(سفارشات!H9<>0,سفارشات!E9,"") -> 420 | F6: =IF(سفارشات!H9<>0,سفارشات!F9,"") -> 0 | G6: =IF(C6="","",E6-F6) -> 420
A7: =IF(C7="","",ROW()-ROW($A$3)) -> 4 | B7: =IF(سفارشات!H8<>0,سفارشات!C8,"") -> 15-007 | C7: =IF(سفارشات!H8<>0,سفارشات!B8,"") -> 1393/01/08 | D7: =IF(سفارشات!H8<>0,سفارشات!D8,"") -> G | E7: =IF(سفارشات!H8<>0,سفارشات!E8,"") -> 570 | F7: =IF(سفارشات!H8<>0,سفارشات!F8,"") -> 0 | G7: =IF(C7="","",E7-F7) -> 570
A8: =IF(C8="","",ROW()-ROW($A$3)) -> 5 | B8: =IF(سفارشات!H7<>0,سفارشات!C7,"") -> 15-006 | C8: =IF(سفارشات!H7<>0,سفارشات!B7,"") -> 1393/01/07 | D8: =IF(سفارشات!H7<>0,سفارشات!D7,"") -> F | E8: =IF(سفارشات!H7<>0,سفارشات!E7,"") -> 700 | F8: =IF(سفارشات!H7<>0,سفارشات!F7,"") -> 0 | G8: =IF(C8="","",E8-F8) -> 700
A9: =IF(C9="","",ROW()-ROW($A$3)) -> 6 | B9: =IF(سفارشات!H5<>0,سفارشات!C5,"") -> 15-004 | C9: =IF(سفارشات!H5<>0,سفارشات!B5,"") -> 1393/01/05 | D9: =IF(سفارشات!H5<>0,سفارشات!D5,"") -> D | E9: =IF(سفارشات!H5<>0,سفارشات!E5,"") -> 200 | F9: =IF(سفارشات!H5<>0,سفارشات!F5,"") -> 185 | G9: =IF(C9="","",E9-F9) -> 15
A10: =IF(C10="","",ROW()-ROW($A$3)) -> 7 | B10: =IF(سفارشات!H3<>0,سفارشات!C3,"") -> 15-002 | C10: =IF(سفارشات!H3<>0,سفارشات!B3,"") -> 1393/01/03 | D10: =IF(سفارشات!H3<>0,سفارشات!D3,"") -> B | E10: =IF(سفارشات!H3<>0,سفارشات!E3,"") -> 542 | F10: =IF(سفارشات!H3<>0,سفارشات!F3,"") -> 200 | G10: =IF(C10="","",E10-F10) -> 342
A11: =IF(C11="","",ROW()-ROW($A$3)) ->  | B11: =IF(سفارشات!H12<>0,سفارشات!C12,"") ->  | C11: =IF(سفارشات!H12<>0,سفارشات!B12,"") ->  | D11: =IF(سفارشات!H12<>0,سفارشات!D12,"") ->  | E11: =IF(سفارشات!H12<>0,سفارشات!E12,"") ->  | F11: =IF(سفارشات!H12<>0,سفارشات!F12,"") ->  | G11: =IF(C11="","",E11-F11) -> 
A12: =IF(C12="","",ROW()-ROW($A$3)) ->  | B12: =IF(سفارشات!H2<>0,سفارشات!C2,"") ->  | C12: =IF(سفارشات!H2<>0,سفارشات!B2,"") ->  | D12: =IF(سفارشات!H2<>0,سفارشات!D2,"") ->  | E12: =IF(سفارشات!H2<>0,سفارشات!E2,"") ->  | F12: =IF(سفارشات!H2<>0,سفارشات!F2,"") ->  | G12: =IF(C12="","",E12-F12) -> 
A13: =IF(C13="","",ROW()-ROW($A$3)) ->  | B13: =IF(سفارشات!H4<>0,سفارشات!C4,"") ->  | C13: =IF(سفارشات!H4<>0,سفارشات!B4,"") ->  | D13: =IF(سفارشات!H4<>0,سفارشات!D4,"") ->  | E13: =IF(سفارشات!H4<>0,سفارشات!E4,"") ->  | F13: =IF(سفارشات!H4<>0,سفارشات!F4,"") ->  | G13: =IF(C13="","",E13-F13) -> 
A14: =IF(C14="","",ROW()-ROW($A$3)) ->  | B14: =IF(سفارشات!H6<>0,سفارشات!C6,"") ->  | C14: =IF(سفارشات!H6<>0,سفارشات!B6,"") ->  | D14: =IF(سفارشات!H6<>0,سفارشات!D6,"") ->  | E14: =IF(سفارشات!H6<>0,سفارشات!E6,"") ->  | F14: =IF(سفارشات!H6<>0,سفارشات!F6,"") ->  | G14: =IF(C14="","",E14-F14) -> 
A15: =IF(C15="","",ROW()-ROW($A$3)) ->  | B15: =IF(سفارشات!H13<>0,سفارشات!C13,"") ->  | C15: =IF(سفارشات!H13<>0,سفارشات!B13,"") ->  | D15: =IF(سفارشات!H13<>0,سفارشات!D13,"") ->  | E15: =IF(سفارشات!H13<>0,سفارشات!E13,"") ->  | F15: =IF(سفارشات!H13<>0,سفارشات!F13,"") ->  | G15: =IF(C15="","",E15-F15) -> 
A16: =IF(C16="","",ROW()-ROW($A$3)) ->  | B16: =IF(سفارشات!H14<>0,سفارشات!C14,"") ->  | C16: =IF(سفارشات!H14<>0,سفارشات!B14,"") ->  | D16: =IF(سفارشات!H14<>0,سفارشات!D14,"") ->  | E16: =IF(سفارشات!H14<>0,سفارشات!E14,"") ->  | F16: =IF(سفارشات!H14<>0,سفارشات!F14,"") ->  | G16: =IF(C16="","",E16-F16) -> 
A17: =IF(C17="","",ROW()-ROW($A$3)) ->  | B17: =IF(سفارشات!H15<>0,سفارشات!C15,"") ->  | C17: =IF(سفارشات!H15<>0,سفارشات!B15,"") ->  | D17: =IF(سفارشات!H15<>0,سفارشات!D15,"") ->  | E17: =IF(سفارشات!H15<>0,سفارشات!E15,"") ->  | F17: =IF(سفارشات!H15<>0,سفارشات!F15,"") ->  | G17: =IF(C17="","",E17-F17) -> 
A18: =IF(C18="","",ROW()-ROW($A$3)) ->  | B18: =IF(سفارشات!H16<>0,سفارشات!C16,"") ->  | C18: =IF(سفارشات!H16<>0,سفارشات!B16,"") ->  | D18: =IF(سفارشات!H16<>0,سفارشات!D16,"") ->  | E18: =IF(سفارشات!H16<>0,سفارشات!E16,"") ->  | F18: =IF(سفارشات!H16<>0,سفارشات!F16,"") ->  | G18: =IF(C18="","",E18-F18) -> 
A19: =IF(C19="","",ROW()-ROW($A$3)) ->  | B19: =IF(سفارشات!H17<>0,سفارشات!C17,"") ->  | C19: =IF(سفارشات!H17<>0,سفارشات!B17,"") ->  | D19: =IF(سفارشات!H17<>0,سفارشات!D17,"") ->  | E19: =IF(سفارشات!H17<>0,سفارشات!E17,"") ->  | F19: =IF(سفارشات!H17<>0,سفارشات!F17,"") ->  | G19: =IF(C19="","",E19-F19) -> 
A20: =IF(C20="","",ROW()-ROW($A$3)) ->  | B20: =IF(سفارشات!H18<>0,سفارشات!C18,"") ->  | C20: =IF(سفارشات!H18<>0,سفارشات!B18,"") ->  | D20: =IF(سفارشات!H18<>0,سفارشات!D18,"") ->  | E20: =IF(سفارشات!H18<>0,سفارشات!E18,"") ->  | F20: =IF(سفارشات!H18<>0,سفارشات!F18,"") ->  | G20: =IF(C20="","",E20-F20) -> 
A21: =IF(C21="","",ROW()-ROW($A$3)) ->  | B21: =IF(سفارشات!H19<>0,سفارشات!C19,"") ->  | C21: =IF(سفارشات!H19<>0,سفارشات!B19,"") ->  | D21: =IF(سفارشات!H19<>0,سفارشات!D19,"") ->  | E21: =IF(سفارشات!H19<>0,سفارشات!E19,"") ->  | F21: =IF(سفارشات!H19<>0,سفارشات!F19,"") ->  | G21: =IF(C21="","",E21-F21) -> 
A22: =IF(C22="","",ROW()-ROW($A$3)) ->  | B22: =IF(سفارشات!H20<>0,سفارشات!C20,"") ->  | C22: =IF(سفارشات!H20<>0,سفارشات!B20,"") ->  | D22: =IF(سفارشات!H20<>0,سفارشات!D20,"") ->  | E22: =IF(سفارشات!H20<>0,سفارشات!E20,"") ->  | F22: =IF(سفارشات!H20<>0,سفارشات!F20,"") ->  | G22: =IF(C22="","",E22-F22) -> 
A23: =IF(C23="","",ROW()-ROW($A$3)) ->  | B23: =IF(سفارشات!H21<>0,سفارشات!C21,"") ->  | C23: =IF(سفارشات!H21<>0,سفارشات!B21,"") ->  | D23: =IF(سفارشات!H21<>0,سفارشات!D21,"") ->  | E23: =IF(سفارشات!H21<>0,سفارشات!E21,"") ->  | F23: =IF(سفارشات!H21<>0,سفارشات!F21,"") ->  | G23: =IF(C23="","",E23-F23) -> 
A24: =IF(C24="","",ROW()-ROW($A$3)) ->  | B24: =IF(سفارشات!H22<>0,سفارشات!C22,"") ->  | C24: =IF(سفارشات!H22<>0,سفارشات!B22,"") ->  | D24: =IF(سفارشات!H22<>0,سفارشات!D22,"") ->  | E24: =IF(سفارشات!H22<>0,سفارشات!E22,"") ->  | F24: =IF(سفارشات!H22<>0,سفارشات!F22,"") ->  | G24: =IF(C24="","",E24-F24) -> 
A25: =IF(C25="","",ROW()-ROW($A$3)) ->  | B25: =IF(سفارشات!H23<>0,سفارشات!C23,"") ->  | C25: =IF(سفارشات!H23<>0,سفارشات!B23,"") ->  | D25: =IF(سفارشات!H23<>0,سفارشات!D23,"") ->  | E25: =IF(سفارشات!H23<>0,سفارشات!E23,"") ->  | F25: =IF(سفارشات!H23<>0,سفارشات!F23,"") ->  | G25: =IF(C25="","",E25-F25) -> 
A26: =IF(C26="","",ROW()-ROW($A$3)) ->  | B26: =IF(سفارشات!H24<>0,سفارشات!C24,"") ->  | C26: =IF(سفارشات!H24<>0,سفارشات!B24,"") ->  | D26: =IF(سفارشات!H24<>0,سفارشات!D24,"") ->  | E26: =IF(سفارشات!H24<>0,سفارشات!E24,"") ->  | F26: =IF(سفارشات!H24<>0,سفارشات!F24,"") ->  | G26: =IF(C26="","",E26-F26) -> 
A27: =IF(C27="","",ROW()-ROW($A$3)) ->  | B27: =IF(سفارشات!H25<>0,سفارشات!C25,"") ->  | C27: =IF(سفارشات!H25<>0,سفارشات!B25,"") ->  | D27: =IF(سفارشات!H25<>0,سفارشات!D25,"") ->  | E27: =IF(سفارشات!H25<>0,سفارشات!E25,"") ->  | F27: =IF(سفارشات!H25<>0,سفارشات!F25,"") ->  | G27: =IF(C27="","",E27-F27) -> 
A28: =IF(C28="","",ROW()-ROW($A$3)) ->  | B28: =IF(سفارشات!H26<>0,سفارشات!C26,"") ->  | C28: =IF(سفارشات!H26<>0,سفارشات!B26,"") ->  | D28: =IF(سفارشات!H26<>0,سفارشات!D26,"") ->  | E28: =IF(سفارشات!H26<>0,سفارشات!E26,"") ->  | F28: =IF(سفارشات!H26<>0,سفارشات!F26,"") ->  | G28: =IF(C28="","",E28-F28) -> 
A29: =IF(C29="","",ROW()-ROW($A$3)) ->  | B29: =IF(سفارشات!H27<>0,سفارشات!C27,"") ->  | C29: =IF(سفارشات!H27<>0,سفارشات!B27,"") ->  | D29: =IF(سفارشات!H27<>0,سفارشات!D27,"") ->  | E29: =IF(سفارشات!H27<>0,سفارشات!E27,"") ->  | F29: =IF(سفارشات!H27<>0,سفارشات!F27,"") ->  | G29: =IF(C29="","",E29-F29) -> 
A30: =IF(C30="","",ROW()-ROW($A$3)) ->  | B30: =IF(سفارشات!H28<>0,سفارشات!C28,"") ->  | C30: =IF(سفارشات!H28<>0,سفارشات!B28,"") ->  | D30: =IF(سفارشات!H28<>0,سفارشات!D28,"") ->  | E30: =IF(سفارشات!H28<>0,سفارشات!E28,"") ->  | F30: =IF(سفارشات!H28<>0,سفارشات!F28,"") ->  | G30: =IF(C30="","",E30-F30) -> 
A31: =IF(C31="","",ROW()-ROW($A$3)) ->  | B31: =IF(سفارشات!H29<>0,سفارشات!C29,"") ->  | C31: =IF(سفارشات!H29<>0,سفارشات!B29,"") ->  | D31: =IF(سفارشات!H29<>0,سفارشات!D29,"") ->  | E31: =IF(سفارشات!H29<>0,سفارشات!E29,"") ->  | F31: =IF(سفارشات!H29<>0,سفارشات!F29,"") ->  | G31: =IF(C31="","",E31-F31) -> 
A32: =IF(C32="","",ROW()-ROW($A$3)) ->  | B32: =IF(سفارشات!H30<>0,سفارشات!C30,"") ->  | C32: =IF(سفارشات!H30<>0,سفارشات!B30,"") ->  | D32: =IF(سفارشات!H30<>0,سفارشات!D30,"") ->  | E32: =IF(سفارشات!H30<>0,سفارشات!E30,"") ->  | F32: =IF(سفارشات!H30<>0,سفارشات!F30,"") ->  | G32: =IF(C32="","",E32-F32) -> 
A33: =IF(C33="","",ROW()-ROW($A$3)) ->  | B33: =IF(سفارشات!H31<>0,سفارشات!C31,"") ->  | C33: =IF(سفارشات!H31<>0,سفارشات!B31,"") ->  | D33: =IF(سفارشات!H31<>0,سفارشات!D31,"") ->  | E33: =IF(سفارشات!H31<>0,سفارشات!E31,"") ->  | F33: =IF(سفارشات!H31<>0,سفارشات!F31,"") ->  | G33: =IF(C33="","",E33-F33) -> 
A34: =IF(C34="","",ROW()-ROW($A$3)) ->  | B34: =IF(سفارشات!H32<>0,سفارشات!C32,"") ->  | C34: =IF(سفارشات!H32<>0,سفارشات!B32,"") ->  | D34: =IF(سفارشات!H32<>0,سفارشات!D32,"") ->  | E34: =IF(سفارشات!H32<>0,سفارشات!E32,"") ->  | F34: =IF(سفارشات!H32<>0,سفارشات!F32,"") ->  | G34: =IF(C34="","",E34-F34) -> 
A35: =IF(C35="","",ROW()-ROW($A$3)) ->  | B35: =IF(سفارشات!H33<>0,سفارشات!C33,"") ->  | C35: =IF(سفارشات!H33<>0,سفارشات!B33,"") ->  | D35: =IF(سفارشات!H33<>0,سفارشات!D33,"") ->  | E35: =IF(سفارشات!H33<>0,سفارشات!E33,"") ->  | F35: =IF(سفارشات!H33<>0,سفارشات!F33,"") ->  | G35: =IF(C35="","",E35-F35) -> 
A36: =IF(C36="","",ROW()-ROW($A$3)) ->  | B36: =IF(سفارشات!H34<>0,سفارشات!C34,"") ->  | C36: =IF(سفارشات!H34<>0,سفارشات!B34,"") ->  | D36: =IF(سفارشات!H34<>0,سفارشات!D34,"") ->  | E36: =IF(سفارشات!H34<>0,سفارشات!E34,"") ->  | F36: =IF(سفارشات!H34<>0,سفارشات!F34,"") ->  | G36: =IF(C36="","",E36-F36) -> 
A37: =IF(C37="","",ROW()-ROW($A$3)) ->  | B37: =IF(سفارشات!H35<>0,سفارشات!C35,"") ->  | C37: =IF(سفارشات!H35<>0,سفارشات!B35,"") ->  | D37: =IF(سفارشات!H35<>0,سفارشات!D35,"") ->  | E37: =IF(سفارشات!H35<>0,سفارشات!E35,"") ->  | F37: =IF(سفارشات!H35<>0,سفارشات!F35,"") ->  | G37: =IF(C37="","",E37-F37) -> 
A38: =IF(C38="","",ROW()-ROW($A$3)) ->  | B38: =IF(سفارشات!H36<>0,سفارشات!C36,"") ->  | C38: =IF(سفارشات!H36<>0,سفارشات!B36,"") ->  | D38: =IF(سفارشات!H36<>0,سفارشات!D36,"") ->  | E38: =IF(سفارشات!H36<>0,سفارشات!E36,"") ->  | F38: =IF(سفارشات!H36<>0,سفارشات!F36,"") ->  | G38: =IF(C38="","",E38-F38) -> 
A39: =IF(C39="","",ROW()-ROW($A$3)) ->  | B39: =IF(سفارشات!H37<>0,سفارشات!C37,"") ->  | C39: =IF(سفارشات!H37<>0,سفارشات!B37,"") ->  | D39: =IF(سفارشات!H37<>0,سفارشات!D37,"") ->  | E39: =IF(سفارشات!H37<>0,سفارشات!E37,"") ->  | F39: =IF(سفارشات!H37<>0,سفارشات!F37,"") ->  | G39: =IF(C39="","",E39-F39) -> 
A40: =IF(C40="","",ROW()-ROW($A$3)) ->  | B40: =IF(سفارشات!H38<>0,سفارشات!C38,"") ->  | C40: =IF(سفارشات!H38<>0,سفارشات!B38,"") ->  | D40: =IF(سفارشات!H38<>0,سفارشات!D38,"") ->  | E40: =IF(سفارشات!H38<>0,سفارشات!E38,"") ->  | F40: =IF(سفارشات!H38<>0,سفارشات!F38,"") ->  | G40: =IF(C40="","",E40-F40) -> 
A41: =IF(C41="","",ROW()-ROW($A$3)) ->  | B41: =IF(سفارشات!H39<>0,سفارشات!C39,"") ->  | C41: =IF(سفارشات!H39<>0,سفارشات!B39,"") ->  | D41: =IF(سفارشات!H39<>0,سفارشات!D39,"") ->  | E41: =IF(سفارشات!H39<>0,سفارشات!E39,"") ->  | F41: =IF(سفارشات!H39<>0,سفارشات!F39,"") ->  | G41: =IF(C41="","",E41-F41) -> 
A42: =IF(C42="","",ROW()-ROW($A$3)) ->  | B42: =IF(سفارشات!H40<>0,سفارشات!C40,"") ->  | C42: =IF(سفارشات!H40<>0,سفارشات!B40,"") ->  | D42: =IF(سفارشات!H40<>0,سفارشات!D40,"") ->  | E42: =IF(سفارشات!H40<>0,سفارشات!E40,"") ->  | F42: =IF(سفارشات!H40<>0,سفارشات!F40,"") ->  | G42: =IF(C42="","",E42-F42) -> 
A43: =IF(C43="","",ROW()-ROW($A$3)) ->  | B43: =IF(سفارشات!H41<>0,سفارشات!C41,"") ->  | C43: =IF(سفارشات!H41<>0,سفارشات!B41,"") ->  | D43: =IF(سفارشات!H41<>0,سفارشات!D41,"") ->  | E43: =IF(سفارشات!H41<>0,سفارشات!E41,"") ->  | F43: =IF(سفارشات!H41<>0,سفارشات!F41,"") ->  | G43: =IF(C43="","",E43-F43) -> 
A44: =IF(C44="","",ROW()-ROW($A$3)) ->  | B44: =IF(سفارشات!H42<>0,سفارشات!C42,"") ->  | C44: =IF(سفارشات!H42<>0,سفارشات!B42,"") ->  | D44: =IF(سفارشات!H42<>0,سفارشات!D42,"") ->  | E44: =IF(سفارشات!H42<>0,سفارشات!E42,"") ->  | F44: =IF(سفارشات!H42<>0,سفارشات!F42,"") ->  | G44: =IF(C44="","",E44-F44) -> 
A45: =IF(C45="","",ROW()-ROW($A$3)) ->  | B45: =IF(سفارشات!H43<>0,سفارشات!C43,"") ->  | C45: =IF(سفارشات!H43<>0,سفارشات!B43,"") ->  | D45: =IF(سفارشات!H43<>0,سفارشات!D43,"") ->  | E45: =IF(سفارشات!H43<>0,سفارشات!E43,"") ->  | F45: =IF(سفارشات!H43<>0,سفارشات!F43,"") ->  | G45: =IF(C45="","",E45-F45) -> 
A46: =IF(C46="","",ROW()-ROW($A$3)) ->  | B46: =IF(سفارشات!H44<>0,سفارشات!C44,"") ->  | C46: =IF(سفارشات!H44<>0,سفارشات!B44,"") ->  | D46: =IF(سفارشات!H44<>0,سفارشات!D44,"") ->  | E46: =IF(سفارشات!H44<>0,سفارشات!E44,"") ->  | F46: =IF(سفارشات!H44<>0,سفارشات!F44,"") ->  | G46: =IF(C46="","",E46-F46) -> 
A47: =IF(C47="","",ROW()-ROW($A$3)) ->  | B47: =IF(سفارشات!H45<>0,سفارشات!C45,"") ->  | C47: =IF(سفارشات!H45<>0,سفارشات!B45,"") ->  | D47: =IF(سفارشات!H45<>0,سفارشات!D45,"") ->  | E47: =IF(سفارشات!H45<>0,سفارشات!E45,"") ->  | F47: =IF(سفارشات!H45<>0,سفارشات!F45,"") ->  | G47: =IF(C47="","",E47-F47) -> 
A48: =IF(C48="","",ROW()-ROW($A$3)) ->  | B48: =IF(سفارشات!H46<>0,سفارشات!C46,"") ->  | C48: =IF(سفارشات!H46<>0,سفارشات!B46,"") ->  | D48: =IF(سفارشات!H46<>0,سفارشات!D46,"") ->  | E48: =IF(سفارشات!H46<>0,سفارشات!E46,"") ->  | F48: =IF(سفارشات!H46<>0,سفارشات!F46,"") ->  | G48: =IF(C48="","",E48-F48) -> 
A49: =IF(C49="","",ROW()-ROW($A$3)) ->  | B49: =IF(سفارشات!H47<>0,سفارشات!C47,"") ->  | C49: =IF(سفارشات!H47<>0,سفارشات!B47,"") ->  | D49: =IF(سفارشات!H47<>0,سفارشات!D47,"") ->  | E49: =IF(سفارشات!H47<>0,سفارشات!E47,"") ->  | F49: =IF(سفارشات!H47<>0,سفارشات!F47,"") ->  | G49: =IF(C49="","",E49-F49) -> 
A50: =IF(C50="","",ROW()-ROW($A$3)) ->  | B50: =IF(سفارشات!H48<>0,سفارشات!C48,"") ->  | C50: =IF(سفارشات!H48<>0,سفارشات!B48,"") ->  | D50: =IF(سفارشات!H48<>0,سفارشات!D48,"") ->  | E50: =IF(سفارشات!H48<>0,سفارشات!E48,"") ->  | F50: =IF(سفارشات!H48<>0,سفارشات!F48,"") ->  | G50: =IF(C50="","",E50-F50) -> 
A51: =IF(C51="","",ROW()-ROW($A$3)) ->  | B51: =IF(سفارشات!H49<>0,سفارشات!C49,"") ->  | C51: =IF(سفارشات!H49<>0,سفارشات!B49,"") ->  | D51: =IF(سفارشات!H49<>0,سفارشات!D49,"") ->  | E51: =IF(سفارشات!H49<>0,سفارشات!E49,"") ->  | F51: =IF(سفارشات!H49<>0,سفارشات!F49,"") ->  | G51: =IF(C51="","",E51-F51) -> 
A52: =IF(C52="","",ROW()-ROW($A$3)) ->  | B52: =IF(سفارشات!H50<>0,سفارشات!C50,"") ->  | C52: =IF(سفارشات!H50<>0,سفارشات!B50,"") ->  | D52: =IF(سفارشات!H50<>0,سفارشات!D50,"") ->  | E52: =IF(سفارشات!H50<>0,سفارشات!E50,"") ->  | F52: =IF(سفارشات!H50<>0,سفارشات!F50,"") ->  | G52: =IF(C52="","",E52-F52) -> 
A53: =IF(C53="","",ROW()-ROW($A$3)) ->  | B53: =IF(سفارشات!H51<>0,سفارشات!C51,"") ->  | C53: =IF(سفارشات!H51<>0,سفارشات!B51,"") ->  | D53: =IF(سفارشات!H51<>0,سفارشات!D51,"") ->  | E53: =IF(سفارشات!H51<>0,سفارشات!E51,"") ->  | F53: =IF(سفارشات!H51<>0,سفارشات!F51,"") ->  | G53: =IF(C53="","",E53-F53) -> 
A54: =IF(C54="","",ROW()-ROW($A$3)) ->  | B54: =IF(سفارشات!H52<>0,سفارشات!C52,"") ->  | C54: =IF(سفارشات!H52<>0,سفارشات!B52,"") ->  | D54: =IF(سفارشات!H52<>0,سفارشات!D52,"") ->  | E54: =IF(سفارشات!H52<>0,سفارشات!E52,"") ->  | F54: =IF(سفارشات!H52<>0,سفارشات!F52,"") ->  | G54: =IF(C54="","",E54-F54) -> 
A55: =IF(C55="","",ROW()-ROW($A$3)) ->  | B55: =IF(سفارشات!H53<>0,سفارشات!C53,"") ->  | C55: =IF(سفارشات!H53<>0,سفارشات!B53,"") ->  | D55: =IF(سفارشات!H53<>0,سفارشات!D53,"") ->  | E55: =IF(سفارشات!H53<>0,سفارشات!E53,"") ->  | F55: =IF(سفارشات!H53<>0,سفارشات!F53,"") ->  | G55: =IF(C55="","",E55-F55) -> 
A56: =IF(C56="","",ROW()-ROW($A$3)) ->  | B56: =IF(سفارشات!H54<>0,سفارشات!C54,"") ->  | C56: =IF(سفارشات!H54<>0,سفارشات!B54,"") ->  | D56: =IF(سفارشات!H54<>0,سفارشات!D54,"") ->  | E56: =IF(سفارشات!H54<>0,سفارشات!E54,"") ->  | F56: =IF(سفارشات!H54<>0,سفارشات!F54,"") ->  | G56: =IF(C56="","",E56-F56) -> 
A57: =IF(C57="","",ROW()-ROW($A$3)) ->  | B57: =IF(سفارشات!H55<>0,سفارشات!C55,"") ->  | C57: =IF(سفارشات!H55<>0,سفارشات!B55,"") ->  | D57: =IF(سفارشات!H55<>0,سفارشات!D55,"") ->  | E57: =IF(سفارشات!H55<>0,سفارشات!E55,"") ->  | F57: =IF(سفارشات!H55<>0,سفارشات!F55,"") ->  | G57: =IF(C57="","",E57-F57) -> 
A58: =IF(C58="","",ROW()-ROW($A$3)) ->  | B58: =IF(سفارشات!H56<>0,سفارشات!C56,"") ->  | C58: =IF(سفارشات!H56<>0,سفارشات!B56,"") ->  | D58: =IF(سفارشات!H56<>0,سفارشات!D56,"") ->  | E58: =IF(سفارشات!H56<>0,سفارشات!E56,"") ->  | F58: =IF(سفارشات!H56<>0,سفارشات!F56,"") ->  | G58: =IF(C58="","",E58-F58) -> 
A59: =IF(C59="","",ROW()-ROW($A$3)) ->  | B59: =IF(سفارشات!H57<>0,سفارشات!C57,"") ->  | C59: =IF(سفارشات!H57<>0,سفارشات!B57,"") ->  | D59: =IF(سفارشات!H57<>0,سفارشات!D57,"") ->  | E59: =IF(سفارشات!H57<>0,سفارشات!E57,"") ->  | F59: =IF(سفارشات!H57<>0,سفارشات!F57,"") ->  | G59: =IF(C59="","",E59-F59) -> 
A60: =IF(C60="","",ROW()-ROW($A$3)) ->  | B60: =IF(سفارشات!H58<>0,سفارشات!C58,"") ->  | C60: =IF(سفارشات!H58<>0,سفارشات!B58,"") ->  | D60: =IF(سفارشات!H58<>0,سفارشات!D58,"") ->  | E60: =IF(سفارشات!H58<>0,سفارشات!E58,"") ->  | F60: =IF(سفارشات!H58<>0,سفارشات!F58,"") ->  | G60: =IF(C60="","",E60-F60) -> 
A61: =IF(C61="","",ROW()-ROW($A$3)) ->  | B61: =IF(سفارشات!H59<>0,سفارشات!C59,"") ->  | C61: =IF(سفارشات!H59<>0,سفارشات!B59,"") ->  | D61: =IF(سفارشات!H59<>0,سفارشات!D59,"") ->  | E61: =IF(سفارشات!H59<>0,سفارشات!E59,"") ->  | F61: =IF(سفارشات!H59<>0,سفارشات!F59,"") ->  | G61: =IF(C61="","",E61-F61) -> 
A62: =IF(C62="","",ROW()-ROW($A$3)) ->  | B62: =IF(سفارشات!H60<>0,سفارشات!C60,"") ->  | C62: =IF(سفارشات!H60<>0,سفارشات!B60,"") ->  | D62: =IF(سفارشات!H60<>0,سفارشات!D60,"") ->  | E62: =IF(سفارشات!H60<>0,سفارشات!E60,"") ->  | F62: =IF(سفارشات!H60<>0,سفارشات!F60,"") ->  | G62: =IF(C62="","",E62-F62) -> 
A63: =IF(C63="","",ROW()-ROW($A$3)) ->  | B63: =IF(سفارشات!H61<>0,سفارشات!C61,"") ->  | C63: =IF(سفارشات!H61<>0,سفارشات!B61,"") ->  | D63: =IF(سفارشات!H61<>0,سفارشات!D61,"") ->  | E63: =IF(سفارشات!H61<>0,سفارشات!E61,"") ->  | F63: =IF(سفارشات!H61<>0,سفارشات!F61,"") ->  | G63: =IF(C63="","",E63-F63) -> 
A64: =IF(C64="","",ROW()-ROW($A$3)) ->  | B64: =IF(سفارشات!H62<>0,سفارشات!C62,"") ->  | C64: =IF(سفارشات!H62<>0,سفارشات!B62,"") ->  | D64: =IF(سفارشات!H62<>0,سفارشات!D62,"") ->  | E64: =IF(سفارشات!H62<>0,سفارشات!E62,"") ->  | F64: =IF(سفارشات!H62<>0,سفارشات!F62,"") ->  | G64: =IF(C64="","",E64-F64) -> 
A65: =IF(C65="","",ROW()-ROW($A$3)) ->  | B65: =IF(سفارشات!H63<>0,سفارشات!C63,"") ->  | C65: =IF(سفارشات!H63<>0,سفارشات!B63,"") ->  | D65: =IF(سفارشات!H63<>0,سفارشات!D63,"") ->  | E65: =IF(سفارشات!H63<>0,سفارشات!E63,"") ->  | F65: =IF(سفارشات!H63<>0,سفارشات!F63,"") ->  | G65: =IF(C65="","",E65-F65) -> 
A66: =IF(C66="","",ROW()-ROW($A$3)) ->  | B66: =IF(سفارشات!H64<>0,سفارشات!C64,"") ->  | C66: =IF(سفارشات!H64<>0,سفارشات!B64,"") ->  | D66: =IF(سفارشات!H64<>0,سفارشات!D64,"") ->  | E66: =IF(سفارشات!H64<>0,سفارشات!E64,"") ->  | F66: =IF(سفارشات!H64<>0,سفارشات!F64,"") ->  | G66: =IF(C66="","",E66-F66) -> 
A67: =IF(C67="","",ROW()-ROW($A$3)) ->  | B67: =IF(سفارشات!H65<>0,سفارشات!C65,"") ->  | C67: =IF(سفارشات!H65<>0,سفارشات!B65,"") ->  | D67: =IF(سفارشات!H65<>0,سفارشات!D65,"") ->  | E67: =IF(سفارشات!H65<>0,سفارشات!E65,"") ->  | F67: =IF(سفارشات!H65<>0,سفارشات!F65,"") ->  | G67: =IF(C67="","",E67-F67) -> 
A68: =IF(C68="","",ROW()-ROW($A$3)) ->  | B68: =IF(سفارشات!H66<>0,سفارشات!C66,"") ->  | C68: =IF(سفارشات!H66<>0,سفارشات!B66,"") ->  | D68: =IF(سفارشات!H66<>0,سفارشات!D66,"") ->  | E68: =IF(سفارشات!H66<>0,سفارشات!E66,"") ->  | F68: =IF(سفارشات!H66<>0,سفارشات!F66,"") ->  | G68: =IF(C68="","",E68-F68) -> 
A69: =IF(C69="","",ROW()-ROW($A$3)) ->  | B69: =IF(سفارشات!H67<>0,سفارشات!C67,"") ->  | C69: =IF(سفارشات!H67<>0,سفارشات!B67,"") ->  | D69: =IF(سفارشات!H67<>0,سفارشات!D67,"") ->  | E69: =IF(سفارشات!H67<>0,سفارشات!E67,"") ->  | F69: =IF(سفارشات!H67<>0,سفارشات!F67,"") ->  | G69: =IF(C69="","",E69-F69) -> 
A70: =IF(C70="","",ROW()-ROW($A$3)) ->  | B70: =IF(سفارشات!H68<>0,سفارشات!C68,"") ->  | C70: =IF(سفارشات!H68<>0,سفارشات!B68,"") ->  | D70: =IF(سفارشات!H68<>0,سفارشات!D68,"") ->  | E70: =IF(سفارشات!H68<>0,سفارشات!E68,"") ->  | F70: =IF(سفارشات!H68<>0,سفارشات!F68,"") ->  | G70: =IF(C70="","",E70-F70) -> 
A71: =IF(C71="","",ROW()-ROW($A$3)) ->  | B71: =IF(سفارشات!H69<>0,سفارشات!C69,"") ->  | C71: =IF(سفارشات!H69<>0,سفارشات!B69,"") ->  | D71: =IF(سفارشات!H69<>0,سفارشات!D69,"") ->  | E71: =IF(سفارشات!H69<>0,سفارشات!E69,"") ->  | F71: =IF(سفارشات!H69<>0,سفارشات!F69,"") ->  | G71: =IF(C71="","",E71-F71) -> 
A72: =IF(C72="","",ROW()-ROW($A$3)) ->  | B72: =IF(سفارشات!H70<>0,سفارشات!C70,"") ->  | C72: =IF(سفارشات!H70<>0,سفارشات!B70,"") ->  | D72: =IF(سفارشات!H70<>0,سفارشات!D70,"") ->  | E72: =IF(سفارشات!H70<>0,سفارشات!E70,"") ->  | F72: =IF(سفارشات!H70<>0,سفارشات!F70,"") ->  | G72: =IF(C72="","",E72-F72) -> 
A73: =IF(C73="","",ROW()-ROW($A$3)) ->  | B73: =IF(سفارشات!H71<>0,سفارشات!C71,"") ->  | C73: =IF(سفارشات!H71<>0,سفارشات!B71,"") ->  | D73: =IF(سفارشات!H71<>0,سفارشات!D71,"") ->  | E73: =IF(سفارشات!H71<>0,سفارشات!E71,"") ->  | F73: =IF(سفارشات!H71<>0,سفارشات!F71,"") ->  | G73: =IF(C73="","",E73-F73) -> 
A74: =IF(C74="","",ROW()-ROW($A$3)) ->  | B74: =IF(سفارشات!H72<>0,سفارشات!C72,"") ->  | C74: =IF(سفارشات!H72<>0,سفارشات!B72,"") ->  | D74: =IF(سفارشات!H72<>0,سفارشات!D72,"") ->  | E74: =IF(سفارشات!H72<>0,سفارشات!E72,"") ->  | F74: =IF(سفارشات!H72<>0,سفارشات!F72,"") ->  | G74: =IF(C74="","",E74-F74) -> 
A75: =IF(C75="","",ROW()-ROW($A$3)) ->  | B75: =IF(سفارشات!H73<>0,سفارشات!C73,"") ->  | C75: =IF(سفارشات!H73<>0,سفارشات!B73,"") ->  | D75: =IF(سفارشات!H73<>0,سفارشات!D73,"") ->  | E75: =IF(سفارشات!H73<>0,سفارشات!E73,"") ->  | F75: =IF(سفارشات!H73<>0,سفارشات!F73,"") ->  | G75: =IF(C75="","",E75-F75) -> 
A76: =IF(C76="","",ROW()-ROW($A$3)) ->  | B76: =IF(سفارشات!H74<>0,سفارشات!C74,"") ->  | C76: =IF(سفارشات!H74<>0,سفارشات!B74,"") ->  | D76: =IF(سفارشات!H74<>0,سفارشات!D74,"") ->  | E76: =IF(سفارشات!H74<>0,سفارشات!E74,"") ->  | F76: =IF(سفارشات!H74<>0,سفارشات!F74,"") ->  | G76: =IF(C76="","",E76-F76) -> 
A77: =IF(C77="","",ROW()-ROW($A$3)) ->  | B77: =IF(سفارشات!H75<>0,سفارشات!C75,"") ->  | C77: =IF(سفارشات!H75<>0,سفارشات!B75,"") ->  | D77: =IF(سفارشات!H75<>0,سفارشات!D75,"") ->  | E77: =IF(سفارشات!H75<>0,سفارشات!E75,"") ->  | F77: =IF(سفارشات!H75<>0,سفارشات!F75,"") ->  | G77: =IF(C77="","",E77-F77) -> 
A78: =IF(C78="","",ROW()-ROW($A$3)) ->  | B78: =IF(سفارشات!H76<>0,سفارشات!C76,"") ->  | C78: =IF(سفارشات!H76<>0,سفارشات!B76,"") ->  | D78: =IF(سفارشات!H76<>0,سفارشات!D76,"") ->  | E78: =IF(سفارشات!H76<>0,سفارشات!E76,"") ->  | F78: =IF(سفارشات!H76<>0,سفارشات!F76,"") ->  | G78: =IF(C78="","",E78-F78) -> 
A79: =IF(C79="","",ROW()-ROW($A$3)) ->  | B79: =IF(سفارشات!H77<>0,سفارشات!C77,"") ->  | C79: =IF(سفارشات!H77<>0,سفارشات!B77,"") ->  | D79: =IF(سفارشات!H77<>0,سفارشات!D77,"") ->  | E79: =IF(سفارشات!H77<>0,سفارشات!E77,"") ->  | F79: =IF(سفارشات!H77<>0,سفارشات!F77,"") ->  | G79: =IF(C79="","",E79-F79) -> 
A80: =IF(C80="","",ROW()-ROW($A$3)) ->  | B80: =IF(سفارشات!H78<>0,سفارشات!C78,"") ->  | C80: =IF(سفارشات!H78<>0,سفارشات!B78,"") ->  | D80: =IF(سفارشات!H78<>0,سفارشات!D78,"") ->  | E80: =IF(سفارشات!H78<>0,سفارشات!E78,"") ->  | F80: =IF(سفارشات!H78<>0,سفارشات!F78,"") ->  | G80: =IF(C80="","",E80-F80) -> 
A81: =IF(C81="","",ROW()-ROW($A$3)) ->  | B81: =IF(سفارشات!H79<>0,سفارشات!C79,"") ->  | C81: =IF(سفارشات!H79<>0,سفارشات!B79,"") ->  | D81: =IF(سفارشات!H79<>0,سفارشات!D79,"") ->  | E81: =IF(سفارشات!H79<>0,سفارشات!E79,"") ->  | F81: =IF(سفارشات!H79<>0,سفارشات!F79,"") ->  | G81: =IF(C81="","",E81-F81) -> 
A82: =IF(C82="","",ROW()-ROW($A$3)) ->  | B82: =IF(سفارشات!H80<>0,سفارشات!C80,"") ->  | C82: =IF(سفارشات!H80<>0,سفارشات!B80,"") ->  | D82: =IF(سفارشات!H80<>0,سفارشات!D80,"") ->  | E82: =IF(سفارشات!H80<>0,سفارشات!E80,"") ->  | F82: =IF(سفارشات!H80<>0,سفارشات!F80,"") ->  | G82: =IF(C82="","",E82-F82) -> 
A83: =IF(C83="","",ROW()-ROW($A$3)) ->  | B83: =IF(سفارشات!H81<>0,سفارشات!C81,"") ->  | C83: =IF(سفارشات!H81<>0,سفارشات!B81,"") ->  | D83: =IF(سفارشات!H81<>0,سفارشات!D81,"") ->  | E83: =IF(سفارشات!H81<>0,سفارشات!E81,"") ->  | F83: =IF(سفارشات!H81<>0,سفارشات!F81,"") ->  | G83: =IF(C83="","",E83-F83) -> 
A84: =IF(C84="","",ROW()-ROW($A$3)) ->  | B84: =IF(سفارشات!H82<>0,سفارشات!C82,"") ->  | C84: =IF(سفارشات!H82<>0,سفارشات!B82,"") ->  | D84: =IF(سفارشات!H82<>0,سفارشات!D82,"") ->  | E84: =IF(سفارشات!H82<>0,سفارشات!E82,"") ->  | F84: =IF(سفارشات!H82<>0,سفارشات!F82,"") ->  | G84: =IF(C84="","",E84-F84) -> 
A85: =IF(C85="","",ROW()-ROW($A$3)) ->  | B85: =IF(سفارشات!H83<>0,سفارشات!C83,"") ->  | C85: =IF(سفارشات!H83<>0,سفارشات!B83,"") ->  | D85: =IF(سفارشات!H83<>0,سفارشات!D83,"") ->  | E85: =IF(سفارشات!H83<>0,سفارشات!E83,"") ->  | F85: =IF(سفارشات!H83<>0,سفارشات!F83,"") ->  | G85: =IF(C85="","",E85-F85) -> 
A86: =IF(C86="","",ROW()-ROW($A$3)) ->  | B86: =IF(سفارشات!H84<>0,سفارشات!C84,"") ->  | C86: =IF(سفارشات!H84<>0,سفارشات!B84,"") ->  | D86: =IF(سفارشات!H84<>0,سفارشات!D84,"") ->  | E86: =IF(سفارشات!H84<>0,سفارشات!E84,"") ->  | F86: =IF(سفارشات!H84<>0,سفارشات!F84,"") ->  | G86: =IF(C86="","",E86-F86) -> 
A87: =IF(C87="","",ROW()-ROW($A$3)) ->  | B87: =IF(سفارشات!H85<>0,سفارشات!C85,"") ->  | C87: =IF(سفارشات!H85<>0,سفارشات!B85,"") ->  | D87: =IF(سفارشات!H85<>0,سفارشات!D85,"") ->  | E87: =IF(سفارشات!H85<>0,سفارشات!E85,"") ->  | F87: =IF(سفارشات!H85<>0,سفارشات!F85,"") ->  | G87: =IF(C87="","",E87-F87) -> 
A88: =IF(C88="","",ROW()-ROW($A$3)) ->  | B88: =IF(سفارشات!H86<>0,سفارشات!C86,"") ->  | C88: =IF(سفارشات!H86<>0,سفارشات!B86,"") ->  | D88: =IF(سفارشات!H86<>0,سفارشات!D86,"") ->  | E88: =IF(سفارشات!H86<>0,سفارشات!E86,"") ->  | F88: =IF(سفارشات!H86<>0,سفارشات!F86,"") ->  | G88: =IF(C88="","",E88-F88) -> 
A89: =IF(C89="","",ROW()-ROW($A$3)) ->  | B89: =IF(سفارشات!H87<>0,سفارشات!C87,"") ->  | C89: =IF(سفارشات!H87<>0,سفارشات!B87,"") ->  | D89: =IF(سفارشات!H87<>0,سفارشات!D87,"") ->  | E89: =IF(سفارشات!H87<>0,سفارشات!E87,"") ->  | F89: =IF(سفارشات!H87<>0,سفارشات!F87,"") ->  | G89: =IF(C89="","",E89-F89) -> 
A90: =IF(C90="","",ROW()-ROW($A$3)) ->  | B90: =IF(سفارشات!H88<>0,سفارشات!C88,"") ->  | C90: =IF(سفارشات!H88<>0,سفارشات!B88,"") ->  | D90: =IF(سفارشات!H88<>0,سفارشات!D88,"") ->  | E90: =IF(سفارشات!H88<>0,سفارشات!E88,"") ->  | F90: =IF(سفارشات!H88<>0,سفارشات!F88,"") ->  | G90: =IF(C90="","",E90-F90) -> 
A91: =IF(C91="","",ROW()-ROW($A$3)) ->  | B91: =IF(سفارشات!H89<>0,سفارشات!C89,"") ->  | C91: =IF(سفارشات!H89<>0,سفارشات!B89,"") ->  | D91: =IF(سفارشات!H89<>0,سفارشات!D89,"") ->  | E91: =IF(سفارشات!H89<>0,سفارشات!E89,"") ->  | F91: =IF(سفارشات!H89<>0,سفارشات!F89,"") ->  | G91: =IF(C91="","",E91-F91) -> 
A92: =IF(C92="","",ROW()-ROW($A$3)) ->  | B92: =IF(سفارشات!H90<>0,سفارشات!C90,"") ->  | C92: =IF(سفارشات!H90<>0,سفارشات!B90,"") ->  | D92: =IF(سفارشات!H90<>0,سفارشات!D90,"") ->  | E92: =IF(سفارشات!H90<>0,سفارشات!E90,"") ->  | F92: =IF(سفارشات!H90<>0,سفارشات!F90,"") ->  | G92: =IF(C92="","",E92-F92) -> 
A93: =IF(C93="","",ROW()-ROW($A$3)) ->  | B93: =IF(سفارشات!H91<>0,سفارشات!C91,"") ->  | C93: =IF(سفارشات!H91<>0,سفارشات!B91,"") ->  | D93: =IF(سفارشات!H91<>0,سفارشات!D91,"") ->  | E93: =IF(سفارشات!H91<>0,سفارشات!E91,"") ->  | F93: =IF(سفارشات!H91<>0,سفارشات!F91,"") ->  | G93: =IF(C93="","",E93-F93) -> 
A94: =IF(C94="","",ROW()-ROW($A$3)) ->  | B94: =IF(سفارشات!H92<>0,سفارشات!C92,"") ->  | C94: =IF(سفارشات!H92<>0,سفارشات!B92,"") ->  | D94: =IF(سفارشات!H92<>0,سفارشات!D92,"") ->  | E94: =IF(سفارشات!H92<>0,سفارشات!E92,"") ->  | F94: =IF(سفارشات!H92<>0,سفارشات!F92,"") ->  | G94: =IF(C94="","",E94-F94) -> 
A95: =IF(C95="","",ROW()-ROW($A$3)) ->  | B95: =IF(سفارشات!H93<>0,سفارشات!C93,"") ->  | C95: =IF(سفارشات!H93<>0,سفارشات!B93,"") ->  | D95: =IF(سفارشات!H93<>0,سفارشات!D93,"") ->  | E95: =IF(سفارشات!H93<>0,سفارشات!E93,"") ->  | F95: =IF(سفارشات!H93<>0,سفارشات!F93,"") ->  | G95: =IF(C95="","",E95-F95) -> 
A96: =IF(C96="","",ROW()-ROW($A$3)) ->  | B96: =IF(سفارشات!H94<>0,سفارشات!C94,"") ->  | C96: =IF(سفارشات!H94<>0,سفارشات!B94,"") ->  | D96: =IF(سفارشات!H94<>0,سفارشات!D94,"") ->  | E96: =IF(سفارشات!H94<>0,سفارشات!E94,"") ->  | F96: =IF(سفارشات!H94<>0,سفارشات!F94,"") ->  | G96: =IF(C96="","",E96-F96) -> 
A97: =IF(C97="","",ROW()-ROW($A$3)) ->  | B97: =IF(سفارشات!H95<>0,سفارشات!C95,"") ->  | C97: =IF(سفارشات!H95<>0,سفارشات!B95,"") ->  | D97: =IF(سفارشات!H95<>0,سفارشات!D95,"") ->  | E97: =IF(سفارشات!H95<>0,سفارشات!E95,"") ->  | F97: =IF(سفارشات!H95<>0,سفارشات!F95,"") ->  | G97: =IF(C97="","",E97-F97) -> 
A98: =IF(C98="","",ROW()-ROW($A$3)) ->  | B98: =IF(سفارشات!H96<>0,سفارشات!C96,"") ->  | C98: =IF(سفارشات!H96<>0,سفارشات!B96,"") ->  | D98: =IF(سفارشات!H96<>0,سفارشات!D96,"") ->  | E98: =IF(سفارشات!H96<>0,سفارشات!E96,"") ->  | F98: =IF(سفارشات!H96<>0,سفارشات!F96,"") ->  | G98: =IF(C98="","",E98-F98) -> 
A99: =IF(C99="","",ROW()-ROW($A$3)) ->  | B99: =IF(سفارشات!H97<>0,سفارشات!C97,"") ->  | C99: =IF(سفارشات!H97<>0,سفارشات!B97,"") ->  | D99: =IF(سفارشات!H97<>0,سفارشات!D97,"") ->  | E99: =IF(سفارشات!H97<>0,سفارشات!E97,"") ->  | F99: =IF(سفارشات!H97<>0,سفارشات!F97,"") ->  | G99: =IF(C99="","",E99-F99) -> 
A100: =IF(C100="","",ROW()-ROW($A$3)) ->  | B100: =IF(سفارشات!H98<>0,سفارشات!C98,"") ->  | C100: =IF(سفارشات!H98<>0,سفارشات!B98,"") ->  | D100: =IF(سفارشات!H98<>0,سفارشات!D98,"") ->  | E100: =IF(سفارشات!H98<>0,سفارشات!E98,"") ->  | F100: =IF(سفارشات!H98<>0,سفارشات!F98,"") ->  | G100: =IF(C100="","",E100-F100) -> 
A101: =IF(C101="","",ROW()-ROW($A$3)) ->  | B101: =IF(سفارشات!H99<>0,سفارشات!C99,"") ->  | C101: =IF(سفارشات!H99<>0,سفارشات!B99,"") ->  | D101: =IF(سفارشات!H99<>0,سفارشات!D99,"") ->  | E101: =IF(سفارشات!H99<>0,سفارشات!E99,"") ->  | F101: =IF(سفارشات!H99<>0,سفارشات!F99,"") ->  | G101: =IF(C101="","",E101-F101) -> 
A102: =IF(C102="","",ROW()-ROW($A$3)) ->  | B102: =IF(سفارشات!H100<>0,سفارشات!C100,"") ->  | C102: =IF(سفارشات!H100<>0,سفارشات!B100,"") ->  | D102: =IF(سفارشات!H100<>0,سفارشات!D100,"") ->  | E102: =IF(سفارشات!H100<>0,سفارشات!E100,"") ->  | F102: =IF(سفارشات!H100<>0,سفارشات!F100,"") ->  | G102: =IF(C102="","",E102-F102) -> 
A103: =IF(C103="","",ROW()-ROW($A$3)) ->  | B103: =IF(سفارشات!H101<>0,سفارشات!C101,"") ->  | C103: =IF(سفارشات!H101<>0,سفارشات!B101,"") ->  | D103: =IF(سفارشات!H101<>0,سفارشات!D101,"") ->  | E103: =IF(سفارشات!H101<>0,سفارشات!E101,"") ->  | F103: =IF(سفارشات!H101<>0,سفارشات!F101,"") ->  | G103: =IF(C103="","",E103-F103) -> 
A104: =IF(C104="","",ROW()-ROW($A$3)) ->  | B104: =IF(سفارشات!H102<>0,سفارشات!C102,"") ->  | C104: =IF(سفارشات!H102<>0,سفارشات!B102,"") ->  | D104: =IF(سفارشات!H102<>0,سفارشات!D102,"") ->  | E104: =IF(سفارشات!H102<>0,سفارشات!E102,"") ->  | F104: =IF(سفارشات!H102<>0,سفارشات!F102,"") ->  | G104: =IF(C104="","",E104-F104) -> 
A105: =IF(C105="","",ROW()-ROW($A$3)) ->  | B105: =IF(سفارشات!H103<>0,سفارشات!C103,"") ->  | C105: =IF(سفارشات!H103<>0,سفارشات!B103,"") ->  | D105: =IF(سفارشات!H103<>0,سفارشات!D103,"") ->  | E105: =IF(سفارشات!H103<>0,سفارشات!E103,"") ->  | F105: =IF(سفارشات!H103<>0,سفارشات!F103,"") ->  | G105: =IF(C105="","",E105-F105) -> 
A106: =IF(C106="","",ROW()-ROW($A$3)) ->  | B106: =IF(سفارشات!H104<>0,سفارشات!C104,"") ->  | C106: =IF(سفارشات!H104<>0,سفارشات!B104,"") ->  | D106: =IF(سفارشات!H104<>0,سفارشات!D104,"") ->  | E106: =IF(سفارشات!H104<>0,سفارشات!E104,"") ->  | F106: =IF(سفارشات!H104<>0,سفارشات!F104,"") ->  | G106: =IF(C106="","",E106-F106) -> 
A107: =IF(C107="","",ROW()-ROW($A$3)) ->  | B107: =IF(سفارشات!H105<>0,سفارشات!C105,"") ->  | C107: =IF(سفارشات!H105<>0,سفارشات!B105,"") ->  | D107: =IF(سفارشات!H105<>0,سفارشات!D105,"") ->  | E107: =IF(سفارشات!H105<>0,سفارشات!E105,"") ->  | F107: =IF(سفارشات!H105<>0,سفارشات!F105,"") ->  | G107: =IF(C107="","",E107-F107) -> 
A108: =IF(C108="","",ROW()-ROW($A$3)) ->  | B108: =IF(سفارشات!H106<>0,سفارشات!C106,"") ->  | C108: =IF(سفارشات!H106<>0,سفارشات!B106,"") ->  | D108: =IF(سفارشات!H106<>0,سفارشات!D106,"") ->  | E108: =IF(سفارشات!H106<>0,سفارشات!E106,"") ->  | F108: =IF(سفارشات!H106<>0,سفارشات!F106,"") ->  | G108: =IF(C108="","",E108-F108) -> 
A109: =IF(C109="","",ROW()-ROW($A$3)) ->  | B109: =IF(سفارشات!H107<>0,سفارشات!C107,"") ->  | C109: =IF(سفارشات!H107<>0,سفارشات!B107,"") ->  | D109: =IF(سفارشات!H107<>0,سفارشات!D107,"") ->  | E109: =IF(سفارشات!H107<>0,سفارشات!E107,"") ->  | F109: =IF(سفارشات!H107<>0,سفارشات!F107,"") ->  | G109: =IF(C109="","",E109-F109) -> 
A110: =IF(C110="","",ROW()-ROW($A$3)) ->  | B110: =IF(سفارشات!H108<>0,سفارشات!C108,"") ->  | C110: =IF(سفارشات!H108<>0,سفارشات!B108,"") ->  | D110: =IF(سفارشات!H108<>0,سفارشات!D108,"") ->  | E110: =IF(سفارشات!H108<>0,سفارشات!E108,"") ->  | F110: =IF(سفارشات!H108<>0,سفارشات!F108,"") ->  | G110: =IF(C110="","",E110-F110) -> 
A111: =IF(C111="","",ROW()-ROW($A$3)) ->  | B111: =IF(سفارشات!H109<>0,سفارشات!C109,"") ->  | C111: =IF(سفارشات!H109<>0,سفارشات!B109,"") ->  | D111: =IF(سفارشات!H109<>0,سفارشات!D109,"") ->  | E111: =IF(سفارشات!H109<>0,سفارشات!E109,"") ->  | F111: =IF(سفارشات!H109<>0,سفارشات!F109,"") ->  | G111: =IF(C111="","",E111-F111) -> 
A112: =IF(C112="","",ROW()-ROW($A$3)) ->  | B112: =IF(سفارشات!H110<>0,سفارشات!C110,"") ->  | C112: =IF(سفارشات!H110<>0,سفارشات!B110,"") ->  | D112: =IF(سفارشات!H110<>0,سفارشات!D110,"") ->  | E112: =IF(سفارشات!H110<>0,سفارشات!E110,"") ->  | F112: =IF(سفارشات!H110<>0,سفارشات!F110,"") ->  | G112: =IF(C112="","",E112-F112) -> 
A113: =IF(C113="","",ROW()-ROW($A$3)) ->  | B113: =IF(سفارشات!H111<>0,سفارشات!C111,"") ->  | C113: =IF(سفارشات!H111<>0,سفارشات!B111,"") ->  | D113: =IF(سفارشات!H111<>0,سفارشات!D111,"") ->  | E113: =IF(سفارشات!H111<>0,سفارشات!E111,"") ->  | F113: =IF(سفارشات!H111<>0,سفارشات!F111,"") ->  | G113: =IF(C113="","",E113-F113) -> 
A114: =IF(C114="","",ROW()-ROW($A$3)) ->  | B114: =IF(سفارشات!H112<>0,سفارشات!C112,"") ->  | C114: =IF(سفارشات!H112<>0,سفارشات!B112,"") ->  | D114: =IF(سفارشات!H112<>0,سفارشات!D112,"") ->  | E114: =IF(سفارشات!H112<>0,سفارشات!E112,"") ->  | F114: =IF(سفارشات!H112<>0,سفارشات!F112,"") ->  | G114: =IF(C114="","",E114-F114) -> 
A115: =IF(C115="","",ROW()-ROW($A$3)) ->  | B115: =IF(سفارشات!H113<>0,سفارشات!C113,"") ->  | C115: =IF(سفارشات!H113<>0,سفارشات!B113,"") ->  | D115: =IF(سفارشات!H113<>0,سفارشات!D113,"") ->  | E115: =IF(سفارشات!H113<>0,سفارشات!E113,"") ->  | F115: =IF(سفارشات!H113<>0,سفارشات!F113,"") ->  | G115: =IF(C115="","",E115-F115) -> 
A116: =IF(C116="","",ROW()-ROW($A$3)) ->  | B116: =IF(سفارشات!H114<>0,سفارشات!C114,"") ->  | C116: =IF(سفارشات!H114<>0,سفارشات!B114,"") ->  | D116: =IF(سفارشات!H114<>0,سفارشات!D114,"") ->  | E116: =IF(سفارشات!H114<>0,سفارشات!E114,"") ->  | F116: =IF(سفارشات!H114<>0,سفارشات!F114,"") ->  | G116: =IF(C116="","",E116-F116) -> 
A117: =IF(C117="","",ROW()-ROW($A$3)) ->  | B117: =IF(سفارشات!H115<>0,سفارشات!C115,"") ->  | C117: =IF(سفارشات!H115<>0,سفارشات!B115,"") ->  | D117: =IF(سفارشات!H115<>0,سفارشات!D115,"") ->  | E117: =IF(سفارشات!H115<>0,سفارشات!E115,"") ->  | F117: =IF(سفارشات!H115<>0,سفارشات!F115,"") ->  | G117: =IF(C117="","",E117-F117) -> 
A118: =IF(C118="","",ROW()-ROW($A$3)) ->  | B118: =IF(سفارشات!H116<>0,سفارشات!C116,"") ->  | C118: =IF(سفارشات!H116<>0,سفارشات!B116,"") ->  | D118: =IF(سفارشات!H116<>0,سفارشات!D116,"") ->  | E118: =IF(سفارشات!H116<>0,سفارشات!E116,"") ->  | F118: =IF(سفارشات!H116<>0,سفارشات!F116,"") ->  | G118: =IF(C118="","",E118-F118) -> 
A119: =IF(C119="","",ROW()-ROW($A$3)) ->  | B119: =IF(سفارشات!H117<>0,سفارشات!C117,"") ->  | C119: =IF(سفارشات!H117<>0,سفارشات!B117,"") ->  | D119: =IF(سفارشات!H117<>0,سفارشات!D117,"") ->  | E119: =IF(سفارشات!H117<>0,سفارشات!E117,"") ->  | F119: =IF(سفارشات!H117<>0,سفارشات!F117,"") ->  | G119: =IF(C119="","",E119-F119) -> 
A120: =IF(C120="","",ROW()-ROW($A$3)) ->  | B120: =IF(سفارشات!H118<>0,سفارشات!C118,"") ->  | C120: =IF(سفارشات!H118<>0,سفارشات!B118,"") ->  | D120: =IF(سفارشات!H118<>0,سفارشات!D118,"") ->  | E120: =IF(سفارشات!H118<>0,سفارشات!E118,"") ->  | F120: =IF(سفارشات!H118<>0,سفارشات!F118,"") ->  | G120: =IF(C120="","",E120-F120) -> 
A121: =IF(C121="","",ROW()-ROW($A$3)) ->  | B121: =IF(سفارشات!H119<>0,سفارشات!C119,"") ->  | C121: =IF(سفارشات!H119<>0,سفارشات!B119,"") ->  | D121: =IF(سفارشات!H119<>0,سفارشات!D119,"") ->  | E121: =IF(سفارشات!H119<>0,سفارشات!E119,"") ->  | F121: =IF(سفارشات!H119<>0,سفارشات!F119,"") ->  | G121: =IF(C121="","",E121-F121) -> 
A122: =IF(C122="","",ROW()-ROW($A$3)) ->  | B122: =IF(سفارشات!H120<>0,سفارشات!C120,"") ->  | C122: =IF(سفارشات!H120<>0,سفارشات!B120,"") ->  | D122: =IF(سفارشات!H120<>0,سفارشات!D120,"") ->  | E122: =IF(سفارشات!H120<>0,سفارشات!E120,"") ->  | F122: =IF(سفارشات!H120<>0,سفارشات!F120,"") ->  | G122: =IF(C122="","",E122-F122) -> 
A123: =IF(C123="","",ROW()-ROW($A$3)) ->  | B123: =IF(سفارشات!H121<>0,سفارشات!C121,"") ->  | C123: =IF(سفارشات!H121<>0,سفارشات!B121,"") ->  | D123: =IF(سفارشات!H121<>0,سفارشات!D121,"") ->  | E123: =IF(سفارشات!H121<>0,سفارشات!E121,"") ->  | F123: =IF(سفارشات!H121<>0,سفارشات!F121,"") ->  | G123: =IF(C123="","",E123-F123) -> 
A124: =IF(C124="","",ROW()-ROW($A$3)) ->  | B124: =IF(سفارشات!H122<>0,سفارشات!C122,"") ->  | C124: =IF(سفارشات!H122<>0,سفارشات!B122,"") ->  | D124: =IF(سفارشات!H122<>0,سفارشات!D122,"") ->  | E124: =IF(سفارشات!H122<>0,سفارشات!E122,"") ->  | F124: =IF(سفارشات!H122<>0,سفارشات!F122,"") ->  | G124: =IF(C124="","",E124-F124) -> 
A125: =IF(C125="","",ROW()-ROW($A$3)) ->  | B125: =IF(سفارشات!H123<>0,سفارشات!C123,"") ->  | C125: =IF(سفارشات!H123<>0,سفارشات!B123,"") ->  | D125: =IF(سفارشات!H123<>0,سفارشات!D123,"") ->  | E125: =IF(سفارشات!H123<>0,سفارشات!E123,"") ->  | F125: =IF(سفارشات!H123<>0,سفارشات!F123,"") ->  | G125: =IF(C125="","",E125-F125) -> 
A126: =IF(C126="","",ROW()-ROW($A$3)) ->  | B126: =IF(سفارشات!H124<>0,سفارشات!C124,"") ->  | C126: =IF(سفارشات!H124<>0,سفارشات!B124,"") ->  | D126: =IF(سفارشات!H124<>0,سفارشات!D124,"") ->  | E126: =IF(سفارشات!H124<>0,سفارشات!E124,"") ->  | F126: =IF(سفارشات!H124<>0,سفارشات!F124,"") ->  | G126: =IF(C126="","",E126-F126) -> 
A127: =IF(C127="","",ROW()-ROW($A$3)) ->  | B127: =IF(سفارشات!H125<>0,سفارشات!C125,"") ->  | C127: =IF(سفارشات!H125<>0,سفارشات!B125,"") ->  | D127: =IF(سفارشات!H125<>0,سفارشات!D125,"") ->  | E127: =IF(سفارشات!H125<>0,سفارشات!E125,"") ->  | F127: =IF(سفارشات!H125<>0,سفارشات!F125,"") ->  | G127: =IF(C127="","",E127-F127) -> 
A128: =IF(C128="","",ROW()-ROW($A$3)) ->  | B128: =IF(سفارشات!H126<>0,سفارشات!C126,"") ->  | C128: =IF(سفارشات!H126<>0,سفارشات!B126,"") ->  | D128: =IF(سفارشات!H126<>0,سفارشات!D126,"") ->  | E128: =IF(سفارشات!H126<>0,سفارشات!E126,"") ->  | F128: =IF(سفارشات!H126<>0,سفارشات!F126,"") ->  | G128: =IF(C128="","",E128-F128) -> 
A129: =IF(C129="","",ROW()-ROW($A$3)) ->  | B129: =IF(سفارشات!H127<>0,سفارشات!C127,"") ->  | C129: =IF(سفارشات!H127<>0,سفارشات!B127,"") ->  | D129: =IF(سفارشات!H127<>0,سفارشات!D127,"") ->  | E129: =IF(سفارشات!H127<>0,سفارشات!E127,"") ->  | F129: =IF(سفارشات!H127<>0,سفارشات!F127,"") ->  | G129: =IF(C129="","",E129-F129) -> 
A130: =IF(C130="","",ROW()-ROW($A$3)) ->  | B130: =IF(سفارشات!H128<>0,سفارشات!C128,"") ->  | C130: =IF(سفارشات!H128<>0,سفارشات!B128,"") ->  | D130: =IF(سفارشات!H128<>0,سفارشات!D128,"") ->  | E130: =IF(سفارشات!H128<>0,سفارشات!E128,"") ->  | F130: =IF(سفارشات!H128<>0,سفارشات!F128,"") ->  | G130: =IF(C130="","",E130-F130) -> 
A131: =IF(C131="","",ROW()-ROW($A$3)) ->  | B131: =IF(سفارشات!H129<>0,سفارشات!C129,"") ->  | C131: =IF(سفارشات!H129<>0,سفارشات!B129,"") ->  | D131: =IF(سفارشات!H129<>0,سفارشات!D129,"") ->  | E131: =IF(سفارشات!H129<>0,سفارشات!E129,"") ->  | F131: =IF(سفارشات!H129<>0,سفارشات!F129,"") ->  | G131: =IF(C131="","",E131-F131) -> 
A132: =IF(C132="","",ROW()-ROW($A$3)) ->  | B132: =IF(سفارشات!H130<>0,سفارشات!C130,"") ->  | C132: =IF(سفارشات!H130<>0,سفارشات!B130,"") ->  | D132: =IF(سفارشات!H130<>0,سفارشات!D130,"") ->  | E132: =IF(سفارشات!H130<>0,سفارشات!E130,"") ->  | F132: =IF(سفارشات!H130<>0,سفارشات!F130,"") ->  | G132: =IF(C132="","",E132-F132) -> 
A133: =IF(C133="","",ROW()-ROW($A$3)) ->  | B133: =IF(سفارشات!H131<>0,سفارشات!C131,"") ->  | C133: =IF(سفارشات!H131<>0,سفارشات!B131,"") ->  | D133: =IF(سفارشات!H131<>0,سفارشات!D131,"") ->  | E133: =IF(سفارشات!H131<>0,سفارشات!E131,"") ->  | F133: =IF(سفارشات!H131<>0,سفارشات!F131,"") ->  | G133: =IF(C133="","",E133-F133) -> 
A134: =IF(C134="","",ROW()-ROW($A$3)) ->  | B134: =IF(سفارشات!H132<>0,سفارشات!C132,"") ->  | C134: =IF(سفارشات!H132<>0,سفارشات!B132,"") ->  | D134: =IF(سفارشات!H132<>0,سفارشات!D132,"") ->  | E134: =IF(سفارشات!H132<>0,سفارشات!E132,"") ->  | F134: =IF(سفارشات!H132<>0,سفارشات!F132,"") ->  | G134: =IF(C134="","",E134-F134) -> 
A135: =IF(C135="","",ROW()-ROW($A$3)) ->  | B135: =IF(سفارشات!H133<>0,سفارشات!C133,"") ->  | C135: =IF(سفارشات!H133<>0,سفارشات!B133,"") ->  | D135: =IF(سفارشات!H133<>0,سفارشات!D133,"") ->  | E135: =IF(سفارشات!H133<>0,سفارشات!E133,"") ->  | F135: =IF(سفارشات!H133<>0,سفارشات!F133,"") ->  | G135: =IF(C135="","",E135-F135) -> 
A136: =IF(C136="","",ROW()-ROW($A$3)) ->  | B136: =IF(سفارشات!H134<>0,سفارشات!C134,"") ->  | C136: =IF(سفارشات!H134<>0,سفارشات!B134,"") ->  | D136: =IF(سفارشات!H134<>0,سفارشات!D134,"") ->  | E136: =IF(سفارشات!H134<>0,سفارشات!E134,"") ->  | F136: =IF(سفارشات!H134<>0,سفارشات!F134,"") ->  | G136: =IF(C136="","",E136-F136) -> 
A137: =IF(C137="","",ROW()-ROW($A$3)) ->  | B137: =IF(سفارشات!H135<>0,سفارشات!C135,"") ->  | C137: =IF(سفارشات!H135<>0,سفارشات!B135,"") ->  | D137: =IF(سفارشات!H135<>0,سفارشات!D135,"") ->  | E137: =IF(سفارشات!H135<>0,سفارشات!E135,"") ->  | F137: =IF(سفارشات!H135<>0,سفارشات!F135,"") ->  | G137: =IF(C137="","",E137-F137) -> 
A138: =IF(C138="","",ROW()-ROW($A$3)) ->  | B138: =IF(سفارشات!H136<>0,سفارشات!C136,"") ->  | C138: =IF(سفارشات!H136<>0,سفارشات!B136,"") ->  | D138: =IF(سفارشات!H136<>0,سفارشات!D136,"") ->  | E138: =IF(سفارشات!H136<>0,سفارشات!E136,"") ->  | F138: =IF(سفارشات!H136<>0,سفارشات!F136,"") ->  | G138: =IF(C138="","",E138-F138) -> 
A139: =IF(C139="","",ROW()-ROW($A$3)) ->  | B139: =IF(سفارشات!H137<>0,سفارشات!C137,"") ->  | C139: =IF(سفارشات!H137<>0,سفارشات!B137,"") ->  | D139: =IF(سفارشات!H137<>0,سفارشات!D137,"") ->  | E139: =IF(سفارشات!H137<>0,سفارشات!E137,"") ->  | F139: =IF(سفارشات!H137<>0,سفارشات!F137,"") ->  | G139: =IF(C139="","",E139-F139) -> 
A140: =IF(C140="","",ROW()-ROW($A$3)) ->  | B140: =IF(سفارشات!H138<>0,سفارشات!C138,"") ->  | C140: =IF(سفارشات!H138<>0,سفارشات!B138,"") ->  | D140: =IF(سفارشات!H138<>0,سفارشات!D138,"") ->  | E140: =IF(سفارشات!H138<>0,سفارشات!E138,"") ->  | F140: =IF(سفارشات!H138<>0,سفارشات!F138,"") ->  | G140: =IF(C140="","",E140-F140) -> 
A141: =IF(C141="","",ROW()-ROW($A$3)) ->  | B141: =IF(سفارشات!H139<>0,سفارشات!C139,"") ->  | C141: =IF(سفارشات!H139<>0,سفارشات!B139,"") ->  | D141: =IF(سفارشات!H139<>0,سفارشات!D139,"") ->  | E141: =IF(سفارشات!H139<>0,سفارشات!E139,"") ->  | F141: =IF(سفارشات!H139<>0,سفارشات!F139,"") ->  | G141: =IF(C141="","",E141-F141) -> 
A142: =IF(C142="","",ROW()-ROW($A$3)) ->  | B142: =IF(سفارشات!H140<>0,سفارشات!C140,"") ->  | C142: =IF(سفارشات!H140<>0,سفارشات!B140,"") ->  | D142: =IF(سفارشات!H140<>0,سفارشات!D140,"") ->  | E142: =IF(سفارشات!H140<>0,سفارشات!E140,"") ->  | F142: =IF(سفارشات!H140<>0,سفارشات!F140,"") ->  | G142: =IF(C142="","",E142-F142) -> 
A143: =IF(C143="","",ROW()-ROW($A$3)) ->  | B143: =IF(سفارشات!H141<>0,سفارشات!C141,"") ->  | C143: =IF(سفارشات!H141<>0,سفارشات!B141,"") ->  | D143: =IF(سفارشات!H141<>0,سفارشات!D141,"") ->  | E143: =IF(سفارشات!H141<>0,سفارشات!E141,"") ->  | F143: =IF(سفارشات!H141<>0,سفارشات!F141,"") ->  | G143: =IF(C143="","",E143-F143) -> 
A144: =IF(C144="","",ROW()-ROW($A$3)) ->  | B144: =IF(سفارشات!H142<>0,سفارشات!C142,"") ->  | C144: =IF(سفارشات!H142<>0,سفارشات!B142,"") ->  | D144: =IF(سفارشات!H142<>0,سفارشات!D142,"") ->  | E144: =IF(سفارشات!H142<>0,سفارشات!E142,"") ->  | F144: =IF(سفارشات!H142<>0,سفارشات!F142,"") ->  | G144: =IF(C144="","",E144-F144) -> 
A145: =IF(C145="","",ROW()-ROW($A$3)) ->  | B145: =IF(سفارشات!H143<>0,سفارشات!C143,"") ->  | C145: =IF(سفارشات!H143<>0,سفارشات!B143,"") ->  | D145: =IF(سفارشات!H143<>0,سفارشات!D143,"") ->  | E145: =IF(سفارشات!H143<>0,سفارشات!E143,"") ->  | F145: =IF(سفارشات!H143<>0,سفارشات!F143,"") ->  | G145: =IF(C145="","",E145-F145) -> 
A146: =IF(C146="","",ROW()-ROW($A$3)) ->  | B146: =IF(سفارشات!H144<>0,سفارشات!C144,"") ->  | C146: =IF(سفارشات!H144<>0,سفارشات!B144,"") ->  | D146: =IF(سفارشات!H144<>0,سفارشات!D144,"") ->  | E146: =IF(سفارشات!H144<>0,سفارشات!E144,"") ->  | F146: =IF(سفارشات!H144<>0,سفارشات!F144,"") ->  | G146: =IF(C146="","",E146-F146) -> 
A147: =IF(C147="","",ROW()-ROW($A$3)) ->  | B147: =IF(سفارشات!H145<>0,سفارشات!C145,"") ->  | C147: =IF(سفارشات!H145<>0,سفارشات!B145,"") ->  | D147: =IF(سفارشات!H145<>0,سفارشات!D145,"") ->  | E147: =IF(سفارشات!H145<>0,سفارشات!E145,"") ->  | F147: =IF(سفارشات!H145<>0,سفارشات!F145,"") ->  | G147: =IF(C147="","",E147-F147) -> 
A148: =IF(C148="","",ROW()-ROW($A$3)) ->  | B148: =IF(سفارشات!H146<>0,سفارشات!C146,"") ->  | C148: =IF(سفارشات!H146<>0,سفارشات!B146,"") ->  | D148: =IF(سفارشات!H146<>0,سفارشات!D146,"") ->  | E148: =IF(سفارشات!H146<>0,سفارشات!E146,"") ->  | F148: =IF(سفارشات!H146<>0,سفارشات!F146,"") ->  | G148: =IF(C148="","",E148-F148) -> 
A149: =IF(C149="","",ROW()-ROW($A$3)) ->  | B149: =IF(سفارشات!H147<>0,سفارشات!C147,"") ->  | C149: =IF(سفارشات!H147<>0,سفارشات!B147,"") ->  | D149: =IF(سفارشات!H147<>0,سفارشات!D147,"") ->  | E149: =IF(سفارشات!H147<>0,سفارشات!E147,"") ->  | F149: =IF(سفارشات!H147<>0,سفارشات!F147,"") ->  | G149: =IF(C149="","",E149-F149) -> 
A150: =IF(C150="","",ROW()-ROW($A$3)) ->  | B150: =IF(سفارشات!H148<>0,سفارشات!C148,"") ->  | C150: =IF(سفارشات!H148<>0,سفارشات!B148,"") ->  | D150: =IF(سفارشات!H148<>0,سفارشات!D148,"") ->  | E150: =IF(سفارشات!H148<>0,سفارشات!E148,"") ->  | F150: =IF(سفارشات!H148<>0,سفارشات!F148,"") ->  | G150: =IF(C150="","",E150-F150) -> 
A151: =IF(C151="","",ROW()-ROW($A$3)) ->  | B151: =IF(سفارشات!H149<>0,سفارشات!C149,"") ->  | C151: =IF(سفارشات!H149<>0,سفارشات!B149,"") ->  | D151: =IF(سفارشات!H149<>0,سفارشات!D149,"") ->  | E151: =IF(سفارشات!H149<>0,سفارشات!E149,"") ->  | F151: =IF(سفارشات!H149<>0,سفارشات!F149,"") ->  | G151: =IF(C151="","",E151-F151) -> 
A152: =IF(C152="","",ROW()-ROW($A$3)) ->  | B152: =IF(سفارشات!H150<>0,سفارشات!C150,"") ->  | C152: =IF(سفارشات!H150<>0,سفارشات!B150,"") ->  | D152: =IF(سفارشات!H150<>0,سفارشات!D150,"") ->  | E152: =IF(سفارشات!H150<>0,سفارشات!E150,"") ->  | F152: =IF(سفارشات!H150<>0,سفارشات!F150,"") ->  | G152: =IF(C152="","",E152-F152) -> 
A153: =IF(C153="","",ROW()-ROW($A$3)) ->  | B153: =IF(سفارشات!H151<>0,سفارشات!C151,"") ->  | C153: =IF(سفارشات!H151<>0,سفارشات!B151,"") ->  | D153: =IF(سفارشات!H151<>0,سفارشات!D151,"") ->  | E153: =IF(سفارشات!H151<>0,سفارشات!E151,"") ->  | F153: =IF(سفارشات!H151<>0,سفارشات!F151,"") ->  | G153: =IF(C153="","",E153-F153) -> 
A154: =IF(C154="","",ROW()-ROW($A$3)) ->  | B154: =IF(سفارشات!H152<>0,سفارشات!C152,"") ->  | C154: =IF(سفارشات!H152<>0,سفارشات!B152,"") ->  | D154: =IF(سفارشات!H152<>0,سفارشات!D152,"") ->  | E154: =IF(سفارشات!H152<>0,سفارشات!E152,"") ->  | F154: =IF(سفارشات!H152<>0,سفارشات!F152,"") ->  | G154: =IF(C154="","",E154-F154) -> 
A155: =IF(C155="","",ROW()-ROW($A$3)) ->  | B155: =IF(سفارشات!H153<>0,سفارشات!C153,"") ->  | C155: =IF(سفارشات!H153<>0,سفارشات!B153,"") ->  | D155: =IF(سفارشات!H153<>0,سفارشات!D153,"") ->  | E155: =IF(سفارشات!H153<>0,سفارشات!E153,"") ->  | F155: =IF(سفارشات!H153<>0,سفارشات!F153,"") ->  | G155: =IF(C155="","",E155-F155) -> 
A156: =IF(C156="","",ROW()-ROW($A$3)) ->  | B156: =IF(سفارشات!H154<>0,سفارشات!C154,"") ->  | C156: =IF(سفارشات!H154<>0,سفارشات!B154,"") ->  | D156: =IF(سفارشات!H154<>0,سفارشات!D154,"") ->  | E156: =IF(سفارشات!H154<>0,سفارشات!E154,"") ->  | F156: =IF(سفارشات!H154<>0,سفارشات!F154,"") ->  | G156: =IF(C156="","",E156-F156) -> 
A157: =IF(C157="","",ROW()-ROW($A$3)) ->  | B157: =IF(سفارشات!H155<>0,سفارشات!C155,"") ->  | C157: =IF(سفارشات!H155<>0,سفارشات!B155,"") ->  | D157: =IF(سفارشات!H155<>0,سفارشات!D155,"") ->  | E157: =IF(سفارشات!H155<>0,سفارشات!E155,"") ->  | F157: =IF(سفارشات!H155<>0,سفارشات!F155,"") ->  | G157: =IF(C157="","",E157-F157) -> 
A158: =IF(C158="","",ROW()-ROW($A$3)) ->  | B158: =IF(سفارشات!H156<>0,سفارشات!C156,"") ->  | C158: =IF(سفارشات!H156<>0,سفارشات!B156,"") ->  | D158: =IF(سفارشات!H156<>0,سفارشات!D156,"") ->  | E158: =IF(سفارشات!H156<>0,سفارشات!E156,"") ->  | F158: =IF(سفارشات!H156<>0,سفارشات!F156,"") ->  | G158: =IF(C158="","",E158-F158) -> 
A159: =IF(C159="","",ROW()-ROW($A$3)) ->  | B159: =IF(سفارشات!H157<>0,سفارشات!C157,"") ->  | C159: =IF(سفارشات!H157<>0,سفارشات!B157,"") ->  | D159: =IF(سفارشات!H157<>0,سفارشات!D157,"") ->  | E159: =IF(سفارشات!H157<>0,سفارشات!E157,"") ->  | F159: =IF(سفارشات!H157<>0,سفارشات!F157,"") ->  | G159: =IF(C159="","",E159-F159) -> 
A160: =IF(C160="","",ROW()-ROW($A$3)) ->  | B160: =IF(سفارشات!H158<>0,سفارشات!C158,"") ->  | C160: =IF(سفارشات!H158<>0,سفارشات!B158,"") ->  | D160: =IF(سفارشات!H158<>0,سفارشات!D158,"") ->  | E160: =IF(سفارشات!H158<>0,سفارشات!E158,"") ->  | F160: =IF(سفارشات!H158<>0,سفارشات!F158,"") ->  | G160: =IF(C160="","",E160-F160) -> 
A161: =IF(C161="","",ROW()-ROW($A$3)) ->  | B161: =IF(سفارشات!H159<>0,سفارشات!C159,"") ->  | C161: =IF(سفارشات!H159<>0,سفارشات!B159,"") ->  | D161: =IF(سفارشات!H159<>0,سفارشات!D159,"") ->  | E161: =IF(سفارشات!H159<>0,سفارشات!E159,"") ->  | F161: =IF(سفارشات!H159<>0,سفارشات!F159,"") ->  | G161: =IF(C161="","",E161-F161) -> 
A162: =IF(C162="","",ROW()-ROW($A$3)) ->  | B162: =IF(سفارشات!H160<>0,سفارشات!C160,"") ->  | C162: =IF(سفارشات!H160<>0,سفارشات!B160,"") ->  | D162: =IF(سفارشات!H160<>0,سفارشات!D160,"") ->  | E162: =IF(سفارشات!H160<>0,سفارشات!E160,"") ->  | F162: =IF(سفارشات!H160<>0,سفارشات!F160,"") ->  | G162: =IF(C162="","",E162-F162) -> 
A163: =IF(C163="","",ROW()-ROW($A$3)) ->  | B163: =IF(سفارشات!H161<>0,سفارشات!C161,"") ->  | C163: =IF(سفارشات!H161<>0,سفارشات!B161,"") ->  | D163: =IF(سفارشات!H161<>0,سفارشات!D161,"") ->  | E163: =IF(سفارشات!H161<>0,سفارشات!E161,"") ->  | F163: =IF(سفارشات!H161<>0,سفارشات!F161,"") ->  | G163: =IF(C163="","",E163-F163) -> 
A164: =IF(C164="","",ROW()-ROW($A$3)) ->  | B164: =IF(سفارشات!H162<>0,سفارشات!C162,"") ->  | C164: =IF(سفارشات!H162<>0,سفارشات!B162,"") ->  | D164: =IF(سفارشات!H162<>0,سفارشات!D162,"") ->  | E164: =IF(سفارشات!H162<>0,سفارشات!E162,"") ->  | F164: =IF(سفارشات!H162<>0,سفارشات!F162,"") ->  | G164: =IF(C164="","",E164-F164) -> 
A165: =IF(C165="","",ROW()-ROW($A$3)) ->  | B165: =IF(سفارشات!H163<>0,سفارشات!C163,"") ->  | C165: =IF(سفارشات!H163<>0,سفارشات!B163,"") ->  | D165: =IF(سفارشات!H163<>0,سفارشات!D163,"") ->  | E165: =IF(سفارشات!H163<>0,سفارشات!E163,"") ->  | F165: =IF(سفارشات!H163<>0,سفارشات!F163,"") ->  | G165: =IF(C165="","",E165-F165) -> 
A166: =IF(C166="","",ROW()-ROW($A$3)) ->  | B166: =IF(سفارشات!H164<>0,سفارشات!C164,"") ->  | C166: =IF(سفارشات!H164<>0,سفارشات!B164,"") ->  | D166: =IF(سفارشات!H164<>0,سفارشات!D164,"") ->  | E166: =IF(سفارشات!H164<>0,سفارشات!E164,"") ->  | F166: =IF(سفارشات!H164<>0,سفارشات!F164,"") ->  | G166: =IF(C166="","",E166-F166) -> 
A167: =IF(C167="","",ROW()-ROW($A$3)) ->  | B167: =IF(سفارشات!H165<>0,سفارشات!C165,"") ->  | C167: =IF(سفارشات!H165<>0,سفارشات!B165,"") ->  | D167: =IF(سفارشات!H165<>0,سفارشات!D165,"") ->  | E167: =IF(سفارشات!H165<>0,سفارشات!E165,"") ->  | F167: =IF(سفارشات!H165<>0,سفارشات!F165,"") ->  | G167: =IF(C167="","",E167-F167) -> 
A168: =IF(C168="","",ROW()-ROW($A$3)) ->  | B168: =IF(سفارشات!H166<>0,سفارشات!C166,"") ->  | C168: =IF(سفارشات!H166<>0,سفارشات!B166,"") ->  | D168: =IF(سفارشات!H166<>0,سفارشات!D166,"") ->  | E168: =IF(سفارشات!H166<>0,سفارشات!E166,"") ->  | F168: =IF(سفارشات!H166<>0,سفارشات!F166,"") ->  | G168: =IF(C168="","",E168-F168) -> 
A169: =IF(C169="","",ROW()-ROW($A$3)) ->  | B169: =IF(سفارشات!H167<>0,سفارشات!C167,"") ->  | C169: =IF(سفارشات!H167<>0,سفارشات!B167,"") ->  | D169: =IF(سفارشات!H167<>0,سفارشات!D167,"") ->  | E169: =IF(سفارشات!H167<>0,سفارشات!E167,"") ->  | F169: =IF(سفارشات!H167<>0,سفارشات!F167,"") ->  | G169: =IF(C169="","",E169-F169) -> 
A170: =IF(C170="","",ROW()-ROW($A$3)) ->  | B170: =IF(سفارشات!H168<>0,سفارشات!C168,"") ->  | C170: =IF(سفارشات!H168<>0,سفارشات!B168,"") ->  | D170: =IF(سفارشات!H168<>0,سفارشات!D168,"") ->  | E170: =IF(سفارشات!H168<>0,سفارشات!E168,"") ->  | F170: =IF(سفارشات!H168<>0,سفارشات!F168,"") ->  | G170: =IF(C170="","",E170-F170) -> 
A171: =IF(C171="","",ROW()-ROW($A$3)) ->  | B171: =IF(سفارشات!H169<>0,سفارشات!C169,"") ->  | C171: =IF(سفارشات!H169<>0,سفارشات!B169,"") ->  | D171: =IF(سفارشات!H169<>0,سفارشات!D169,"") ->  | E171: =IF(سفارشات!H169<>0,سفارشات!E169,"") ->  | F171: =IF(سفارشات!H169<>0,سفارشات!F169,"") ->  | G171: =IF(C171="","",E171-F171) -> 
A172: =IF(C172="","",ROW()-ROW($A$3)) ->  | B172: =IF(سفارشات!H170<>0,سفارشات!C170,"") ->  | C172: =IF(سفارشات!H170<>0,سفارشات!B170,"") ->  | D172: =IF(سفارشات!H170<>0,سفارشات!D170,"") ->  | E172: =IF(سفارشات!H170<>0,سفارشات!E170,"") ->  | F172: =IF(سفارشات!H170<>0,سفارشات!F170,"") ->  | G172: =IF(C172="","",E172-F172) -> 
A173: =IF(C173="","",ROW()-ROW($A$3)) ->  | B173: =IF(سفارشات!H171<>0,سفارشات!C171,"") ->  | C173: =IF(سفارشات!H171<>0,سفارشات!B171,"") ->  | D173: =IF(سفارشات!H171<>0,سفارشات!D171,"") ->  | E173: =IF(سفارشات!H171<>0,سفارشات!E171,"") ->  | F173: =IF(سفارشات!H171<>0,سفارشات!F171,"") ->  | G173: =IF(C173="","",E173-F173) -> 
A174: =IF(C174="","",ROW()-ROW($A$3)) ->  | B174: =IF(سفارشات!H172<>0,سفارشات!C172,"") ->  | C174: =IF(سفارشات!H172<>0,سفارشات!B172,"") ->  | D174: =IF(سفارشات!H172<>0,سفارشات!D172,"") ->  | E174: =IF(سفارشات!H172<>0,سفارشات!E172,"") ->  | F174: =IF(سفارشات!H172<>0,سفارشات!F172,"") ->  | G174: =IF(C174="","",E174-F174) -> 
A175: =IF(C175="","",ROW()-ROW($A$3)) ->  | B175: =IF(سفارشات!H173<>0,سفارشات!C173,"") ->  | C175: =IF(سفارشات!H173<>0,سفارشات!B173,"") ->  | D175: =IF(سفارشات!H173<>0,سفارشات!D173,"") ->  | E175: =IF(سفارشات!H173<>0,سفارشات!E173,"") ->  | F175: =IF(سفارشات!H173<>0,سفارشات!F173,"") ->  | G175: =IF(C175="","",E175-F175) -> 
A176: =IF(C176="","",ROW()-ROW($A$3)) ->  | B176: =IF(سفارشات!H174<>0,سفارشات!C174,"") ->  | C176: =IF(سفارشات!H174<>0,سفارشات!B174,"") ->  | D176: =IF(سفارشات!H174<>0,سفارشات!D174,"") ->  | E176: =IF(سفارشات!H174<>0,سفارشات!E174,"") ->  | F176: =IF(سفارشات!H174<>0,سفارشات!F174,"") ->  | G176: =IF(C176="","",E176-F176) -> 
A177: =IF(C177="","",ROW()-ROW($A$3)) ->  | B177: =IF(سفارشات!H175<>0,سفارشات!C175,"") ->  | C177: =IF(سفارشات!H175<>0,سفارشات!B175,"") ->  | D177: =IF(سفارشات!H175<>0,سفارشات!D175,"") ->  | E177: =IF(سفارشات!H175<>0,سفارشات!E175,"") ->  | F177: =IF(سفارشات!H175<>0,سفارشات!F175,"") ->  | G177: =IF(C177="","",E177-F177) -> 
A178: =IF(C178="","",ROW()-ROW($A$3)) ->  | B178: =IF(سفارشات!H176<>0,سفارشات!C176,"") ->  | C178: =IF(سفارشات!H176<>0,سفارشات!B176,"") ->  | D178: =IF(سفارشات!H176<>0,سفارشات!D176,"") ->  | E178: =IF(سفارشات!H176<>0,سفارشات!E176,"") ->  | F178: =IF(سفارشات!H176<>0,سفارشات!F176,"") ->  | G178: =IF(C178="","",E178-F178) -> 
A179: =IF(C179="","",ROW()-ROW($A$3)) ->  | B179: =IF(سفارشات!H177<>0,سفارشات!C177,"") ->  | C179: =IF(سفارشات!H177<>0,سفارشات!B177,"") ->  | D179: =IF(سفارشات!H177<>0,سفارشات!D177,"") ->  | E179: =IF(سفارشات!H177<>0,سفارشات!E177,"") ->  | F179: =IF(سفارشات!H177<>0,سفارشات!F177,"") ->  | G179: =IF(C179="","",E179-F179) -> 
A180: =IF(C180="","",ROW()-ROW($A$3)) ->  | B180: =IF(سفارشات!H178<>0,سفارشات!C178,"") ->  | C180: =IF(سفارشات!H178<>0,سفارشات!B178,"") ->  | D180: =IF(سفارشات!H178<>0,سفارشات!D178,"") ->  | E180: =IF(سفارشات!H178<>0,سفارشات!E178,"") ->  | F180: =IF(سفارشات!H178<>0,سفارشات!F178,"") ->  | G180: =IF(C180="","",E180-F180) -> 
A181: =IF(C181="","",ROW()-ROW($A$3)) ->  | B181: =IF(سفارشات!H179<>0,سفارشات!C179,"") ->  | C181: =IF(سفارشات!H179<>0,سفارشات!B179,"") ->  | D181: =IF(سفارشات!H179<>0,سفارشات!D179,"") ->  | E181: =IF(سفارشات!H179<>0,سفارشات!E179,"") ->  | F181: =IF(سفارشات!H179<>0,سفارشات!F179,"") ->  | G181: =IF(C181="","",E181-F181) -> 
A182: =IF(C182="","",ROW()-ROW($A$3)) ->  | B182: =IF(سفارشات!H180<>0,سفارشات!C180,"") ->  | C182: =IF(سفارشات!H180<>0,سفارشات!B180,"") ->  | D182: =IF(سفارشات!H180<>0,سفارشات!D180,"") ->  | E182: =IF(سفارشات!H180<>0,سفارشات!E180,"") ->  | F182: =IF(سفارشات!H180<>0,سفارشات!F180,"") ->  | G182: =IF(C182="","",E182-F182) -> 
A183: =IF(C183="","",ROW()-ROW($A$3)) ->  | B183: =IF(سفارشات!H181<>0,سفارشات!C181,"") ->  | C183: =IF(سفارشات!H181<>0,سفارشات!B181,"") ->  | D183: =IF(سفارشات!H181<>0,سفارشات!D181,"") ->  | E183: =IF(سفارشات!H181<>0,سفارشات!E181,"") ->  | F183: =IF(سفارشات!H181<>0,سفارشات!F181,"") ->  | G183: =IF(C183="","",E183-F183) -> 
A184: =IF(C184="","",ROW()-ROW($A$3)) ->  | B184: =IF(سفارشات!H182<>0,سفارشات!C182,"") ->  | C184: =IF(سفارشات!H182<>0,سفارشات!B182,"") ->  | D184: =IF(سفارشات!H182<>0,سفارشات!D182,"") ->  | E184: =IF(سفارشات!H182<>0,سفارشات!E182,"") ->  | F184: =IF(سفارشات!H182<>0,سفارشات!F182,"") ->  | G184: =IF(C184="","",E184-F184) -> 
A185: =IF(C185="","",ROW()-ROW($A$3)) ->  | B185: =IF(سفارشات!H183<>0,سفارشات!C183,"") ->  | C185: =IF(سفارشات!H183<>0,سفارشات!B183,"") ->  | D185: =IF(سفارشات!H183<>0,سفارشات!D183,"") ->  | E185: =IF(سفارشات!H183<>0,سفارشات!E183,"") ->  | F185: =IF(سفارشات!H183<>0,سفارشات!F183,"") ->  | G185: =IF(C185="","",E185-F185) -> 
A186: =IF(C186="","",ROW()-ROW($A$3)) ->  | B186: =IF(سفارشات!H184<>0,سفارشات!C184,"") ->  | C186: =IF(سفارشات!H184<>0,سفارشات!B184,"") ->  | D186: =IF(سفارشات!H184<>0,سفارشات!D184,"") ->  | E186: =IF(سفارشات!H184<>0,سفارشات!E184,"") ->  | F186: =IF(سفارشات!H184<>0,سفارشات!F184,"") ->  | G186: =IF(C186="","",E186-F186) -> 
A187: =IF(C187="","",ROW()-ROW($A$3)) ->  | B187: =IF(سفارشات!H185<>0,سفارشات!C185,"") ->  | C187: =IF(سفارشات!H185<>0,سفارشات!B185,"") ->  | D187: =IF(سفارشات!H185<>0,سفارشات!D185,"") ->  | E187: =IF(سفارشات!H185<>0,سفارشات!E185,"") ->  | F187: =IF(سفارشات!H185<>0,سفارشات!F185,"") ->  | G187: =IF(C187="","",E187-F187) -> 
A188: =IF(C188="","",ROW()-ROW($A$3)) ->  | B188: =IF(سفارشات!H186<>0,سفارشات!C186,"") ->  | C188: =IF(سفارشات!H186<>0,سفارشات!B186,"") ->  | D188: =IF(سفارشات!H186<>0,سفارشات!D186,"") ->  | E188: =IF(سفارشات!H186<>0,سفارشات!E186,"") ->  | F188: =IF(سفارشات!H186<>0,سفارشات!F186,"") ->  | G188: =IF(C188="","",E188-F188) -> 
A189: =IF(C189="","",ROW()-ROW($A$3)) ->  | B189: =IF(سفارشات!H187<>0,سفارشات!C187,"") ->  | C189: =IF(سفارشات!H187<>0,سفارشات!B187,"") ->  | D189: =IF(سفارشات!H187<>0,سفارشات!D187,"") ->  | E189: =IF(سفارشات!H187<>0,سفارشات!E187,"") ->  | F189: =IF(سفارشات!H187<>0,سفارشات!F187,"") ->  | G189: =IF(C189="","",E189-F189) -> 
A190: =IF(C190="","",ROW()-ROW($A$3)) ->  | B190: =IF(سفارشات!H188<>0,سفارشات!C188,"") ->  | C190: =IF(سفارشات!H188<>0,سفارشات!B188,"") ->  | D190: =IF(سفارشات!H188<>0,سفارشات!D188,"") ->  | E190: =IF(سفارشات!H188<>0,سفارشات!E188,"") ->  | F190: =IF(سفارشات!H188<>0,سفارشات!F188,"") ->  | G190: =IF(C190="","",E190-F190) -> 
A191: =IF(C191="","",ROW()-ROW($A$3)) ->  | B191: =IF(سفارشات!H189<>0,سفارشات!C189,"") ->  | C191: =IF(سفارشات!H189<>0,سفارشات!B189,"") ->  | D191: =IF(سفارشات!H189<>0,سفارشات!D189,"") ->  | E191: =IF(سفارشات!H189<>0,سفارشات!E189,"") ->  | F191: =IF(سفارشات!H189<>0,سفارشات!F189,"") ->  | G191: =IF(C191="","",E191-F191) -> 
A192: =IF(C192="","",ROW()-ROW($A$3)) ->  | B192: =IF(سفارشات!H190<>0,سفارشات!C190,"") ->  | C192: =IF(سفارشات!H190<>0,سفارشات!B190,"") ->  | D192: =IF(سفارشات!H190<>0,سفارشات!D190,"") ->  | E192: =IF(سفارشات!H190<>0,سفارشات!E190,"") ->  | F192: =IF(سفارشات!H190<>0,سفارشات!F190,"") ->  | G192: =IF(C192="","",E192-F192) -> 
A193: =IF(C193="","",ROW()-ROW($A$3)) ->  | B193: =IF(سفارشات!H191<>0,سفارشات!C191,"") ->  | C193: =IF(سفارشات!H191<>0,سفارشات!B191,"") ->  | D193: =IF(سفارشات!H191<>0,سفارشات!D191,"") ->  | E193: =IF(سفارشات!H191<>0,سفارشات!E191,"") ->  | F193: =IF(سفارشات!H191<>0,سفارشات!F191,"") ->  | G193: =IF(C193="","",E193-F193) -> 
A194: =IF(C194="","",ROW()-ROW($A$3)) ->  | B194: =IF(سفارشات!H192<>0,سفارشات!C192,"") ->  | C194: =IF(سفارشات!H192<>0,سفارشات!B192,"") ->  | D194: =IF(سفارشات!H192<>0,سفارشات!D192,"") ->  | E194: =IF(سفارشات!H192<>0,سفارشات!E192,"") ->  | F194: =IF(سفارشات!H192<>0,سفارشات!F192,"") ->  | G194: =IF(C194="","",E194-F194) -> 
A195: =IF(C195="","",ROW()-ROW($A$3)) ->  | B195: =IF(سفارشات!H193<>0,سفارشات!C193,"") ->  | C195: =IF(سفارشات!H193<>0,سفارشات!B193,"") ->  | D195: =IF(سفارشات!H193<>0,سفارشات!D193,"") ->  | E195: =IF(سفارشات!H193<>0,سفارشات!E193,"") ->  | F195: =IF(سفارشات!H193<>0,سفارشات!F193,"") ->  | G195: =IF(C195="","",E195-F195) -> 
A196: =IF(C196="","",ROW()-ROW($A$3)) ->  | B196: =IF(سفارشات!H194<>0,سفارشات!C194,"") ->  | C196: =IF(سفارشات!H194<>0,سفارشات!B194,"") ->  | D196: =IF(سفارشات!H194<>0,سفارشات!D194,"") ->  | E196: =IF(سفارشات!H194<>0,سفارشات!E194,"") ->  | F196: =IF(سفارشات!H194<>0,سفارشات!F194,"") ->  | G196: =IF(C196="","",E196-F196) -> 
A197: =IF(C197="","",ROW()-ROW($A$3)) ->  | B197: =IF(سفارشات!H195<>0,سفارشات!C195,"") ->  | C197: =IF(سفارشات!H195<>0,سفارشات!B195,"") ->  | D197: =IF(سفارشات!H195<>0,سفارشات!D195,"") ->  | E197: =IF(سفارشات!H195<>0,سفارشات!E195,"") ->  | F197: =IF(سفارشات!H195<>0,سفارشات!F195,"") ->  | G197: =IF(C197="","",E197-F197) -> 
A198: =IF(C198="","",ROW()-ROW($A$3)) ->  | B198: =IF(سفارشات!H196<>0,سفارشات!C196,"") ->  | C198: =IF(سفارشات!H196<>0,سفارشات!B196,"") ->  | D198: =IF(سفارشات!H196<>0,سفارشات!D196,"") ->  | E198: =IF(سفارشات!H196<>0,سفارشات!E196,"") ->  | F198: =IF(سفارشات!H196<>0,سفارشات!F196,"") ->  | G198: =IF(C198="","",E198-F198) -> 
A199: =IF(C199="","",ROW()-ROW($A$3)) ->  | B199: =IF(سفارشات!H197<>0,سفارشات!C197,"") ->  | C199: =IF(سفارشات!H197<>0,سفارشات!B197,"") ->  | D199: =IF(سفارشات!H197<>0,سفارشات!D197,"") ->  | E199: =IF(سفارشات!H197<>0,سفارشات!E197,"") ->  | F199: =IF(سفارشات!H197<>0,سفارشات!F197,"") ->  | G199: =IF(C199="","",E199-F199) -> 
A200: =IF(C200="","",ROW()-ROW($A$3)) ->  | B200: =IF(سفارشات!H198<>0,سفارشات!C198,"") ->  | C200: =IF(سفارشات!H198<>0,سفارشات!B198,"") ->  | D200: =IF(سفارشات!H198<>0,سفارشات!D198,"") ->  | E200: =IF(سفارشات!H198<>0,سفارشات!E198,"") ->  | F200: =IF(سفارشات!H198<>0,سفارشات!F198,"") ->  | G200: =IF(C200="","",E200-F200) -> 
A201: =IF(C201="","",ROW()-ROW($A$3)) ->  | B201: =IF(سفارشات!H199<>0,سفارشات!C199,"") ->  | C201: =IF(سفارشات!H199<>0,سفارشات!B199,"") ->  | D201: =IF(سفارشات!H199<>0,سفارشات!D199,"") ->  | E201: =IF(سفارشات!H199<>0,سفارشات!E199,"") ->  | F201: =IF(سفارشات!H199<>0,سفارشات!F199,"") ->  | G201: =IF(C201="","",E201-F201) -> 
... 299 more rows
